Cogmind - Beta 16 @@@ ROGUE MODE // 2025.11.29 @ 23:10:08 Player: Mozco Result: Destroyed by H-88 Terminator with KE Penetrator Performance ------------- Evolutions (9) 4500 Regions Visited (32) 6400 Robots Destroyed (507) 2535 Value Destroyed (25436) 25436 Prototype IDs (93) 1860 Alien Tech Used (2) 400 Bonus (16497) 16497 TOTAL SCORE: 57628 Bonus ------- Triggered High Security 500 Triggered Max Security 1000 High Alert Combat Kills 7466 Follower Combat Kills 1588 Network Hubs Disabled 600 Aligned with FarCom 300 Met Data Miner 300 Met Zhirov 300 MAIN.C Attacked Warlord 500 Warlord Defense Kills 1190 Built Enhanced Grunts 300 Met R17 at Cetus 500 Met R17 at Research 2000 Friendly Fire -47 Cogmind --------- Core Integrity 0/1600 Matter 52/300 Energy 98/100 System Corruption 2% Temperature Cool (0) Movement Core (50) Location -1/Access Parts ------- > --- POWER (2) -------- (None) > --- PROPULSION (6) --- (None) > --- UTILITY (4) ------ Advanced Weight Redist. System Experimental Optical Array Seismic Detector > --- WEAPON (13) ------ (None) > --- INVENTORY (5) ---- Vortex Cannon (15) Guided Micro-nuke Launcher Peak State ------------ > --- POWER ------------ Heavy Antimatter Reactor Light Quantum Reactor > --- PROPULSION ------- Armored Heavy Treads Improved Heavy Siege Treads Centrium Heavy Treads > --- UTILITY ---------- Experimental Cooling System Huge Storage Unit Advanced Force Field Experimental System Shield > --- WEAPON ----------- Vortex Cannon Heavy Machine Gun Railgun Railgun Railgun Railgun Enhanced Hardcell Cannon Compact Linear Accelerator Guided Micro-nuke Launcher RU-N14's Throwing Claymores v3 > --- INVENTORY -------- Heavy Siege Treads Armored Heavy Treads Centrium Heavy Treads Advanced Coolant Injector Superbattery Improved Matter Compressor Advanced Kinecellerator Experimental Phase Shifter Experimental Focal Shield Advanced Force Field Authchip [Propulsion] Advanced Corruption Screen Dimensional Node Initializer Vortex Rail Vortex Rail Vortex Cannon Heavy Machine Gun Gamma Bomb Array Fusion Bomb Launcher Vortex Catalyst Activator RU-N14's Throwing Claymores v3 [Rating: 201] Favorites ----------- Power Antimatter Reactor Engine Reinforced Deuterium Engine Power Core Reinforced Fission Core Reactor Antimatter Reactor Propulsion Armored Treads Treads Armored Treads Utility Huge Storage Unit Device Advanced Heat Sink Storage Huge Storage Unit Processor Experimental Optical Array Hackware Hacking Suite Protection Powered Armor Weapon Advanced KE Penetrator Energy Gun Dispersion Rifle Energy Cannon Neutron Cannon Ballistic Gun Advanced KE Penetrator Ballistic Cannon Improved Light Cannon Launcher Advanced EMP Blaster Special Weapon RU-N14's Throwing Claymores v3 Impact Weapon Heavy Hammer Slashing Weapon Power Sword Piercing Weapon Force Lance Special Melee Weapon Datajack Build | -11 -10 -10 -9 -9 -9 -8 -8 -7 -7 -7 -7 -6 -6 -6 -6 -6 -6 -5 -5 -5 -5 -4 -4 -4 -4 -4 -3 -3 -3 -2 -2 -1 ------- Run | Yrd Mat Min Mat Min Exi Min Mat Fac Low Low Dat Pro Fac Ext Cet Arc Hub Fac Upp Upp Zhi Pro Fac Upp Upp War Pro Res Arm Res Qua Acc Slots Evolved 18 | . . . 2 . . . 2 2 . . . . 2 . . . . 2 . . . . 2 . . . . 2 . 2 . 2 Power 1 | . . . . . . . . . . . . . . . . . . 1 . . . . . . . . . . . . . . Propulsion 4 | . . . 1 . . . 1 1 . . . . 1 . . . . . . . . . . . . . . . . . . . Utility 2 | . . . 1 . . . 1 . . . . . . . . . . . . . . . . . . . . . . . . . Weapon 11 | . . . . . . . . 1 . . . . 1 . . . . 1 . . . . 2 . . . . 2 . 2 . 2 Parts Attached 282 | 7 4 3 10 . 2 1 20 43 1 2 6 8 7 6 3 13 10 25 3 2 5 4 12 5 4 12 3 14 18 25 . 4 Power 33 | 2 . 1 3 . . . 2 2 . . . 2 1 . . . 2 5 1 1 2 1 3 . . 1 . . . 4 . . Engine 11 | 2 . 1 3 . . . 2 1 . . . . . . . . . 2 . . . . . . . . . . . . . . Core 8 | . . . . . . . . 1 . . . . 1 . . . . 2 1 1 1 1 . . . . . . . . . . Reactor 14 | . . . . . . . . . . . . 2 . . . . 2 1 . . 1 . 3 . . 1 . . . 4 . . Propulsion 46 | 2 . 1 3 . . . 7 12 . . . . . 1 . 5 . 6 1 . 1 1 1 1 . . . 2 1 1 . . Treads 46 | 2 . 1 3 . . . 7 12 . . . . . 1 . 5 . 6 1 . 1 1 1 1 . . . 2 1 1 . . Leg . | . . . . . . . . . . . . . . . . . . . . . . . . . . . . . . . . . Wheel . | . . . . . . . . . . . . . . . . . . . . . . . . . . . . . . . . . Hover . | . . . . . . . . . . . . . . . . . . . . . . . . . . . . . . . . . Flight . | . . . . . . . . . . . . . . . . . . . . . . . . . . . . . . . . . Utility 93 | 1 1 . 4 . 1 . 5 14 . . 4 2 2 4 3 5 3 6 . 1 2 1 3 2 1 6 3 4 9 3 . 3 Device 53 | . . . 1 . . . 3 7 . . . 1 . 2 2 5 1 6 . 1 1 1 2 2 1 5 3 2 4 1 . 2 Storage 9 | 1 1 . . . 1 . . . . . 1 1 . 1 . . . . . . . . . . . . . 1 2 . . . Processor 6 | . . . . . . . . 1 . . . . 1 . . . . . . . . . . . . . . 1 1 1 . 1 Hackware 7 | . . . 1 . . . . 1 . . . . . . . . 2 . . . . . 1 . . . . . 1 1 . . Protection 18 | . . . 2 . . . 2 5 . . 3 . 1 1 1 . . . . . 1 . . . . 1 . . 1 . . . Artifact . | . . . . . . . . . . . . . . . . . . . . . . . . . . . . . . . . . Weapon 110 | 2 3 1 . . 1 1 6 15 1 2 2 4 4 1 . 3 5 8 1 . . 1 5 2 3 5 . 8 8 17 . 1 Energy Gun 17 | 1 . . . . . . . 2 . . . . . . . . . 2 . . . . 4 1 3 1 . 2 1 . . . Energy Cannon 7 | . . . . . . . 1 1 . . . 3 . . . . . . . . . . . . . 1 . . . 1 . . Ballistic Gun 47 | 1 . . . . . . . 7 1 . . 1 1 1 . 3 5 6 . . . 1 1 1 . 1 . 3 4 10 . . Ballistic Cannon 13 | . 2 1 . . . . 4 1 . . . . 1 . . . . . . . . . . . . 1 . 1 . 2 . . Launcher 15 | . 1 . . . . 1 1 2 . 1 1 . 2 . . . . . . . . . . . . . . 1 2 3 . . Special Weapon 4 | . . . . . . . . . . . . . . . . . . . . . . . . . . 1 . 1 1 1 . . Impact Weapon 2 | . . . . . . . . 2 . . . . . . . . . . . . . . . . . . . . . . . . Slashing Weapon 2 | . . . . . . . . . . . 1 . . . . . . . 1 . . . . . . . . . . . . . Piercing Weapon 1 | . . . . . . . . . . . . . . . . . . . . . . . . . . . . . . . . 1 Special Melee Weapon 2 | . . . . . 1 . . . . 1 . . . . . . . . . . . . . . . . . . . . . . Unidentified Prototypes 36 | . . . 1 . . . 1 2 . . . 2 1 . 1 2 . 2 . . 4 1 . . . 8 . 3 5 3 . . Corrupted Parts 29 | . . . . . . . . 2 . . . 9 . . . 3 7 . . . . . . 1 . 2 . . 3 2 . . System Corruption 198 | . . . . . . . . 9 . . . 52 . . . 31 57 . . . . . . 3 . 4 . . 30 12 . . Parts Lost 76 | . . 1 1 . . 1 11 4 . . 1 . . 1 1 . 13 12 2 2 . 9 1 1 1 . . . . 13 . 1 Power 13 | . . . . . . . 1 1 . . . . . . 1 . 2 4 . 1 . 1 . . . . . . . 2 . . Propulsion 18 | . . . . . . . 4 1 . . . . . . . . 6 4 1 . . . . . . . . . . 2 . . Utility 18 | . . . . . . . 5 1 . . 1 . . 1 . . 1 1 1 1 . 3 . 1 . . . . . 2 . . Weapon 27 | . . 1 1 . . 1 1 1 . . . . . . . . 4 3 . . . 5 1 . 1 . . . . 7 . 1 Highest Loss Streak 7 | . . 1 1 . . 1 6 2 . . 1 . . 1 1 . 5 4 2 2 . 4 1 1 1 . . . . 7 . 1 To Critical Strikes 1 | . . . . . . . . . . . . . . . 1 . . . . . . . . . . . . . . . . . Average Backups 19 | 1 9 17 16 20 19 18 17 19 19 19 17 24 24 24 23 23 20 14 21 22 22 20 20 21 22 21 21 20 20 19 3 2 Power 1 | . 1 1 3 3 3 3 1 1 1 1 1 2 3 2 1 2 1 1 1 1 1 2 2 2 2 1 1 1 1 . . . Propulsion 3 | . 3 4 3 5 5 5 4 3 5 5 4 5 4 4 4 5 4 2 2 3 2 3 3 4 4 3 3 3 2 2 . . Utility 6 | . . 4 3 3 3 3 5 7 6 5 5 8 9 9 6 4 4 5 10 10 8 7 6 7 7 7 6 7 8 7 . . Weapon 7 | . 5 6 5 6 7 5 6 7 6 7 6 9 8 8 11 11 10 5 7 7 8 6 5 7 8 8 10 7 7 8 3 2 Tool/Special . | . . . . . . . . . . . . . . . . . . . . . . . . . . . . . . . . . Unused Backups 41 | . . . 1 . . . 4 4 1 . 1 . 2 1 1 1 . . . . 3 . 3 . 1 4 . 1 1 12 . . Power 5 | . . . . . . . . 1 1 . . . 1 . . . . . . . . . 2 . . . . . . . . . Propulsion 2 | . . . . . . . . . . . . . . . . 1 . . . . 1 . . . . . . . . . . . Utility 15 | . . . . . . . . 2 . . 1 . . . . . . . . . 2 . 1 . 1 3 . 1 1 3 . . Weapon 17 | . . . 1 . . . 3 1 . . . . 1 1 1 . . . . . . . . . . 1 . . . 8 . . Tool/Special 2 | . . . . . . . 1 . . . . . . . . . . . . . . . . . . . . . . 1 . . Average Slot Usage (%) 87 | . 99 100 97 100 87 100 86 95 100 100 95 100 99 99 99 96 80 85 77 75 58 65 80 88 88 87 80 79 79 78 . 3 Engine 3 | . 14 14 11 11 11 11 8 2 7 7 7 6 . . . . . 3 . . . . . . . . . . . . . . Core 2 | . . . . . . . . 4 . . . . 3 6 . . . 2 10 9 10 8 4 . . . . . . . . . Reactor 2 | . . . . . . . . . . . . . 2 . 5 6 4 1 . . . . 5 10 10 8 5 4 4 7 . . Treads 26 | . 28 28 32 33 33 33 34 37 38 38 38 38 40 40 40 36 29 25 17 17 17 16 15 21 21 21 21 14 14 12 . . Device 9 | . . . . . . . 1 10 15 15 10 7 6 8 6 17 13 15 11 11 13 7 9 11 15 11 15 13 13 8 . 1 Storage 7 | . 27 28 11 11 11 11 9 7 7 7 5 7 6 6 10 6 7 5 5 5 5 5 5 5 5 5 5 4 4 4 . . Hackware 1 | . . . 10 11 11 11 7 . . . . . . . . . 1 . . . . . 4 3 . . . . . 2 . . Protection 4 | . . . 10 11 11 11 6 7 7 7 12 15 12 10 8 1 . . . . 3 . . . . 3 . . . . . . Energy Gun 3 | . 3 2 8 11 . . . 2 . . . . . . . . . 2 5 5 . 1 17 21 20 8 . . . . . . Energy Cannon 1 | . . . . . . . . 2 . . . . 6 10 . . . . . . . . . . . . . . . 1 . . Ballistic Gun 15 | . 5 2 3 11 . . . 12 20 18 3 6 12 7 7 19 17 24 17 11 . 21 11 14 15 24 26 37 34 25 . . Ballistic Cannon 4 | . 14 16 7 . . 8 15 2 . . 1 7 6 6 6 6 2 . . . . . . . . . 5 1 3 8 . . Launcher 1 | . 5 6 . . . 11 1 1 2 3 7 6 . . 11 . . . 4 5 . . . . . . . . 2 1 . . Peak Build Rating 201 | 6 10 11 16 15 15 18 29 53 53 53 56 66 72 76 84 98 97 109 110 108 121 123 136 135 135 150 150 185 189 201 4 27 Average Rating 87 | 4 8 10 15 14 14 17 24 44 52 52 48 56 67 69 76 81 83 99 101 101 91 104 126 132 132 134 142 175 183 185 4 7 On Entrance 72 | . 6 9 11 15 15 14 18 29 52 53 50 56 65 68 76 74 85 97 101 106 108 121 99 134 135 132 150 140 182 187 4 4 Avg Prop Armor Cover (%) 5 | . . . . . . . . 6 . . . . . . . . . . . . . . . . . . . . 6 5 . . Naked Turns 245 | . . . . . . . . . . . . . . . . . . . . . . . . . . . . . . 13 33 199 Heaviest Build 214 | 14 58 58 57 54 54 58 75 87 86 85 133 139 138 136 144 140 129 144 139 149 159 159 159 165 165 184 182 194 200 214 . 6 Greatest Support 235 | 40 40 43 66 60 60 60 86 109 108 108 108 108 131 141 141 181 211 196 203 180 220 230 230 203 196 196 193 235 235 220 3 12 Greatest Overweight (x) 1 | . 1 1 . . . . 1 1 . . 1 1 1 1 1 . . 1 . . . . 1 . . . . 1 1 1 . 1 Average Overweight (x) . | . . 1 . . . . . . . . . 1 . . . . . . . . . . . . . . . . . . . . Largest Inventory Capacity 25 | 8 20 20 20 20 20 20 20 20 20 20 25 25 25 25 25 25 25 25 25 25 25 25 25 25 25 25 25 25 25 25 5 5 Average Capacity 22 | 7 19 20 20 20 20 20 20 20 20 20 20 25 25 25 25 25 25 25 25 25 25 25 25 25 25 25 25 25 25 24 5 5 Most Carried 25 | 2 16 18 20 20 20 20 20 20 20 20 25 25 25 25 25 25 25 24 25 25 25 25 25 25 25 25 25 25 25 25 5 5 Average Carried 21 | 1 9 17 16 19 19 18 19 19 19 19 17 24 24 24 24 24 21 16 22 24 24 22 22 24 25 24 25 24 24 23 5 4 Final Capacity 25 | 8 20 20 20 20 20 20 20 20 20 20 25 25 25 25 25 25 25 25 25 25 25 25 25 25 25 25 25 25 25 5 5 5 Final Carried 25 | 2 16 18 20 20 19 20 20 19 20 20 25 25 25 25 25 25 11 24 24 25 24 20 25 25 25 25 25 24 25 5 5 3 Class Distribution -------------------- 30% | Scavenger-Executioner 29% | Scavenger-Tank 15% | Mutant 8% | Scavenger-Mutant 8% | Tank 4% | Scavenger-Skirmisher Dominant Class ---------------- Mutant | -10/Materials Mutant | -10/Mines Mutant | -9/Materials Scavenger-Mutant | -9/Mines Scavenger-Mutant | -9/Exiles Scavenger-Mutant | -8/Mines Scavenger-Mutant | -8/Materials Scavenger-Skirmisher | -7/Factory Tank | -7/Lower Caves Tank | -7/Lower Caves Mutant | -7/Data Miner Scavenger-Tank | -6/Proximity Caves Scavenger-Tank | -6/Factory Scavenger-Tank | -6/Extension Scavenger-Tank | -6/Cetus Scavenger-Tank | -6/Archives Scavenger-Tank | -6/Hub_04(d) Scavenger-Tank | -5/Factory Scavenger-Tank | -5/Upper Caves Scavenger-Tank | -5/Upper Caves Scavenger-Mutant | -5/Zhirov Scavenger-Tank | -4/Proximity Caves Scavenger-Executioner | -4/Factory Scavenger-Executioner | -4/Upper Caves Scavenger-Executioner | -4/Upper Caves Scavenger-Executioner | -4/Warlord Scavenger-Executioner | -3/Proximity Caves Scavenger-Executioner | -3/Research Scavenger-Executioner | -3/Armory Scavenger-Executioner | -2/Research Mutant | -2/Quarantine Mutant | -1/Access Resources | -11 -10 -10 -9 -9 -9 -8 -8 -7 -7 -7 -7 -6 -6 -6 -6 -6 -6 -5 -5 -5 -5 -4 -4 -4 -4 -4 -3 -3 -3 -2 -2 -1 ----------- Run | Yrd Mat Min Mat Min Exi Min Mat Fac Low Low Dat Pro Fac Ext Cet Arc Hub Fac Upp Upp Zhi Pro Fac Upp Upp War Pro Res Arm Res Qua Acc Matter Collected 18895 | 195 225 215 392 . 500 52 1041 1553 275 105 369 238 454 498 211 549 459 1806 202 240 111 622 277 313 180 424 36 2327 2293 2706 . 27 Remotely 884 | . . . 74 . . . 247 38 . . . . . . . . 324 . . . . 201 . . . . . . . . . . Salvage Created 23904 | . 287 239 394 . . 28 811 2820 74 377 433 229 488 656 695 346 1447 3522 196 300 447 262 336 647 314 241 58 2110 2311 3715 . 121 Parts 1098 | . 35 13 39 . . 1 46 154 3 13 20 10 19 25 27 23 57 147 15 5 4 9 21 27 20 8 6 85 87 164 . 15 Haulers Intercepted 13 | . 1 . . . . . 3 2 . . . . . . . . 2 1 . . . . . . . . . . . 4 . . Recyclers Shooed 18 | . 1 . 1 . . . 2 2 . . . . 2 1 . . . 5 . . . . . . . . . . . 4 . . Parts Field Recycled . | . . . . . . . . . . . . . . . . . . . . . . . . . . . . . . . . . Retrieved Matter . | . . . . . . . . . . . . . . . . . . . . . . . . . . . . . . . . . Parts Self-Destructed 63 | . . . . . . . . . 7 11 . 2 . . . . . . 7 4 1 5 . 11 9 . 6 . . . . . Prevented 35 | . . . . . . . . . 3 1 . 8 . . . . . . 4 1 . 2 . 16 . . . . . . . . Parts Restored . | . . . . . . . . . . . . . . . . . . . . . . . . . . . . . . . . . Kills | -11 -10 -10 -9 -9 -9 -8 -8 -7 -7 -7 -7 -6 -6 -6 -6 -6 -6 -5 -5 -5 -5 -4 -4 -4 -4 -4 -3 -3 -3 -2 -2 -1 ------- Run | Yrd Mat Min Mat Min Exi Min Mat Fac Low Low Dat Pro Fac Ext Cet Arc Hub Fac Upp Upp Zhi Pro Fac Upp Upp War Pro Res Arm Res Qua Acc Combat Hostiles Destroyed 403 | . 11 12 19 . . 2 27 39 1 7 4 4 7 9 8 1 16 50 8 8 . 7 4 8 7 8 4 36 28 55 . 13 Melee 3 | . . . . . . . . 1 . . . . . . . . . . . . . . . . . . . . . . . 2 Guns 185 | . . . 7 . . . . 22 1 4 . 1 3 3 . . 2 50 . 2 . 3 4 8 7 . . 25 20 23 . . Cannons 76 | . 5 3 10 . . 1 19 12 . . . . 4 4 . 1 1 . . . . . . . . 1 1 4 2 8 . . AOE 113 | . 6 9 2 . . 1 8 3 . 2 . 1 . 1 . . 9 . 8 6 . 4 . . . 7 3 7 3 22 . 11 Classes Destroyed 24 | . 7 2 1 . . . 2 4 . . . . . . . . 2 1 1 . . 1 . . . 1 . 2 . . . . Worker 21 | . . 1 . . . . . 3 . . . . 1 . . . 6 4 . . . . . . . . . . . 6 . . Builder 21 | . 2 . . . . . 2 3 . . . . 2 . . . 2 4 . . . . . . . . . . . 5 . 1 Tunneler 5 | . . . . . . . . . . . . . . . . . 1 1 . . . . 1 . . . . . . 1 . 1 Hauler 13 | . 1 . . . . . 3 2 . . . . . . . . 2 1 . . . . . . . . . . . 4 . . Recycler 17 | . 1 . . . . . . 8 . . . . 1 2 . . . 2 . . . . . . . . . 1 . 2 . . Mechanic 4 | . . . . . . . . 1 . . . . . . . . 1 . . . . . . . . . . . 2 . . . Operator 18 | . 1 . . . . . 2 . . . . . . 1 . 9 2 . . . . . 1 . . . . 1 . 1 . . Watcher 6 | . 1 . . . . . 1 . . . . . . . 2 . . 1 . . . . . . . . . . 1 . . . Swarmer 66 | . 5 . 9 . . . 7 5 . 1 . . . . . . 2 . 4 . . 3 . . 4 . 4 5 . 5 . 12 Saboteur 3 | . . . . . . . . . . . . . . . . . 1 2 . . . . . . . . . . . . . . Grunt 175 | . 6 9 7 . . 2 12 16 . 5 . . 4 4 . . 9 32 4 7 . . . 6 . 7 . 14 10 20 . 1 Brawler 8 | . . . . . . . . 1 . . . . . . . . 2 2 . 1 . . . . . . . 1 1 . . . Duelist 6 | . . . . . . . . . . . . . . . . . . 2 . . . . . . . . . . 4 . . . Sentry 33 | . . . 3 . . . 6 5 1 1 . 1 1 3 . 1 1 1 . . . . 1 . . . . 3 4 1 . . Demolisher 4 | . . . . . . . . . . . . . . . . . . . . . . . . . . . . 3 1 . . . Specialist 2 | . . . . . . . . 2 . . . . . . . . . . . . . . . . . . . . . . . . Hunter 39 | . . . . . . . 1 2 . . . 3 . 2 . . 1 3 . . . 2 . 2 . . . 3 4 16 . . Programmer 39 | . . . . . . . . 7 . . . . 2 . . . . 8 . . . 1 3 . . . . 2 5 11 . . Heavy 2 | . . . . . . . 1 1 . . . . . . . . . . . . . . . . . . . . . . . . Behemoth 3 | . . . . . . . . . . . . . . . . . . . . . . 1 . . . . . . . 2 . . Cetus Guard 8 | . . . . . . . . . . . . . . . 8 . . . . . . . . . . . . . . . . . Enhanced Grunt 5 | . . . . . . . . . . . 4 . . . . . 1 . . . . . . . . . . . . . . . Striker 4 | . . . . . . . . . . . . . . . . . . . . . . . . . . . . 4 . . . . Executioner 2 | . . . . . . . . . . . . . . . . . . . . . . . . . . 1 . 1 . . . . Samaritan 1 | . . . . . . . . . . . . . . . . . . . 1 . . . . . . . . . . . . . Assembled 3 | . . 3 . . . . . . . . . . . . . . . . . . . . . . . . . . . . . . Thug 1 | . . . . . . . . . . . . . . . . . . . . . . . . . 1 . . . . . . . Butcher 2 | . . . . . . . . . . . . . . . . . . . . . . . . . 2 . . . . . . . Best Kill Streak 25 | . 5 5 3 . . 2 10 7 1 4 4 2 5 4 5 3 25 16 8 5 . 3 2 3 4 8 4 6 5 16 . 6 Combat Bots Only 14 | . 3 5 3 . . 2 9 4 1 4 4 2 4 4 4 1 14 11 8 5 . 3 2 3 4 8 4 6 5 11 . 5 Max Kills in Single Turn 17 | . 3 3 2 . . 1 3 4 1 1 2 1 3 2 2 1 17 3 3 2 . 2 1 1 2 4 4 3 3 7 . 6 Gunslinging 1 | . . . 1 . . . . . . . . . . . . . . 1 . . . . . . 1 . . 1 1 . . . Exploded 7 | . 2 2 1 . . 1 3 1 . 1 . 1 . 1 . . 7 . 3 2 . 2 . . . 4 3 2 1 5 . 5 Melee 1 | . . . . . . . . 1 . . . . . . . . . . . . . . . . . . . . . . . 1 Uniques/NPCs Destroyed . | . . . . . . . . . . . . . . . . . . . . . . . . . . . . . . . . . Combat | -11 -10 -10 -9 -9 -9 -8 -8 -7 -7 -7 -7 -6 -6 -6 -6 -6 -6 -5 -5 -5 -5 -4 -4 -4 -4 -4 -3 -3 -3 -2 -2 -1 -------- Run | Yrd Mat Min Mat Min Exi Min Mat Fac Low Low Dat Pro Fac Ext Cet Arc Hub Fac Upp Upp Zhi Pro Fac Upp Upp War Pro Res Arm Res Qua Acc Hostile Shots Fired 2833 | . 38 29 70 . . 16 180 311 27 33 24 87 81 106 15 6 340 256 20 22 . 119 23 65 9 6 2 132 161 526 4 125 Missed 943 | . 17 11 26 . . 4 38 108 9 9 13 33 24 33 6 2 117 75 4 7 . 31 7 27 1 2 1 51 68 166 3 50 Hits 1890 | . 21 18 44 . . 12 142 203 18 24 11 54 57 73 9 4 223 181 16 15 . 88 16 38 8 4 1 81 93 360 1 75 Melee 16 | . . 2 . . . . . 1 . . . . . . . . . 2 . . . . . . 1 . . 6 4 . . . Projectile 1874 | . 21 16 44 . . 12 142 202 18 24 11 54 57 73 9 4 223 179 16 15 . 88 16 38 7 4 1 75 89 360 1 75 AOE 15 | . . . . . . . . 2 . . . . . . . . 1 2 . . . . 3 . . . . 3 2 2 . . Critical Strikes 80 | . . . 2 . . . 11 4 . . . . 1 2 5 1 9 9 2 . . 3 . 1 2 . . 4 7 16 . 1 Part Disruptions 7 | . . . . . . . . 2 . . . . . . . . . 2 . . . . . . . . . . 1 2 . . Damage Taken 29501 | . 206 425 561 . . 204 2534 2673 138 225 462 621 761 947 119 81 3190 3574 258 208 . 2051 454 446 73 94 12 978 944 5399 23 1840 Core 3754 | . 23 80 96 . . . 217 127 . 3 . 76 74 49 . . 460 85 12 . . 113 25 29 6 . . 34 47 564 23 1611 Absorbed by Shields 6433 | . . . . . . . 35 321 58 84 48 . . 246 114 31 415 . . . . . . 113 79 10 13 1011 994 2861 . . Reduced by Siege Mode 224 | . . . . . . . . . . . . . . . . . . 79 . . . 124 . . . . . . . 21 . . Redirected to Shielding 182 | . . . 10 . . . . . . . . . . . . . . . . . . 172 . . . . . . . . . . Ignored by Resistances 1826 | . . . . . . . . . . . . . . . . . 697 354 57 78 . 106 44 . . . . 131 150 209 . . Regen/Repaired (Parts) 5312 | . . . 287 . . . 323 580 . . . . . 169 . . . 1349 . . . . 1327 . . 709 . . 568 . . . Core Remaining (%) 71 | 100 . 58 . . . 76 60 . . . . 70 . . . . 31 . . . . 72 . . . . 94 . 93 . 59 . Volleys Fired 902 | . 40 27 59 . . 6 81 131 3 12 6 18 22 34 6 41 27 80 16 9 . 22 10 17 7 2 1 51 59 113 . 2 Largest 9 | . 2 2 2 . . 1 2 3 3 2 2 3 4 4 2 4 4 5 1 4 . 5 6 7 7 1 1 9 9 9 . 1 Hottest 420 | . 70 66 70 . . 33 93 161 84 56 75 101 186 248 86 128 139 204 65 167 . 193 386 419 420 . . 327 321 368 . 20 Shots Fired 2917 | . 48 28 77 . . 6 146 312 12 21 12 33 77 97 12 79 72 382 14 20 . 80 51 107 47 3 2 331 351 495 . 2 Gun 2234 | . 16 . 42 . . . . 229 11 17 . 13 42 34 . 75 58 382 8 13 . 75 51 107 47 1 1 311 316 385 . . Cannon 530 | . 23 13 33 . . 1 134 76 . . . 13 35 60 . 4 6 . . . . . . . . . . 16 25 91 . . Launcher 136 | . 9 15 2 . . 5 12 7 1 4 12 7 . 3 12 . 8 . 6 7 . 5 . . . . . . 10 9 . 2 Special 17 | . . . . . . . . . . . . . . . . . . . . . . . . . . 2 1 4 . 10 . . Kinetic 2388 | . 34 13 52 . . 1 128 231 11 17 . 26 59 57 . 79 64 338 2 8 . 63 21 41 20 1 1 327 339 455 . . Thermal 207 | . 5 . 23 . . . . 25 . . . . 18 37 . . . 37 . . . . 14 32 16 . . . . . . . Explosive 83 | . 9 15 2 . . 5 12 . 1 . . . . . . . . . 6 7 . 5 . . . 2 1 4 . 14 . . Electromagnetic 214 | . . . . . . . 6 56 . 4 12 7 . 3 12 . 8 7 6 5 . 12 16 34 11 . . . 10 5 . . Entropic 25 | . . . . . . . . . . . . . . . . . . . . . . . . . . . . . 2 21 . 2 Robot Hit Streak 28 | . 10 11 10 . . 5 14 13 11 10 13 5 10 16 2 7 10 16 9 3 . 17 9 11 3 3 5 17 10 28 . . Robot Miss Streak 6 | . 2 2 2 . . . 3 4 1 2 2 3 3 2 . 2 3 5 3 2 . 3 6 4 3 . . 6 4 6 . . Penetration Max 2 | . . . . . . . . 1 . . . . 1 1 . . 1 1 . . . . . 1 1 . . 2 1 1 . . Secondary Targets 49 | . . . 2 . . . . 1 . 1 . . . . . . 1 21 . . . 1 . 3 2 . . 6 6 5 . . Max Gunslinging Chain 2 | . . . 1 . . . . 1 . 1 . . . . . . 1 1 . . . 1 . 1 1 . . 2 2 1 . . Shots Hit Robots 1686 | . 29 14 55 . 4 4 81 195 6 15 7 17 45 60 2 53 44 222 8 12 11 54 29 55 20 2 2 179 179 279 . 3 Core Hits 1028 | . 26 23 28 . . 8 57 106 3 13 10 7 16 23 17 30 44 126 17 19 6 19 12 23 13 10 4 90 97 168 . 13 Critical Kills 35 | . . . . . . . . 1 . . . . . . . . . 17 . . . . 2 3 . . . 6 3 3 . . Critical Parts Destroyed 51 | . . . . . . . . 1 . . . . . . . 1 1 16 . . . . 2 3 3 . . 11 8 5 . . Critical Strikes 119 | . 2 . 1 . . . 2 5 . . . . 1 1 . 3 1 37 . . . 3 4 7 4 1 . 18 13 16 . . Burn 5 | . 1 . . . . . . . . . . . . . . . . 3 . . . . . . 1 . . . . . . . Destroy 93 | . . . . . . . . 2 . . . . . . . 1 1 34 . . . 3 4 6 3 . . 17 13 9 . . Blast 11 | . 1 . 1 . . . 2 1 . . . . 1 1 . 2 . . . . . . . . . . . . . 2 . . Corrupt 3 | . . . . . . . . 2 . . . . . . . . . . . . . . . 1 . . . . . . . . Sever 5 | . . . . . . . . . . . . . . . . . . . . . . . . . . 1 . 1 . 3 . . Sunder 2 | . . . . . . . . . . . . . . . . . . . . . . . . . . . . . . 2 . . Melee Attacks 43 | . . . . . 4 . . 16 . . 1 . . . . . . . 1 . 11 . 3 . . . . . . . . 7 Impact 16 | . . . . . . . . 16 . . . . . . . . . . . . . . . . . . . . . . . . Slashing 15 | . . . . . . . . . . . . . . . . . . . 1 . 11 . 3 . . . . . . . . . Piercing 7 | . . . . . . . . . . . . . . . . . . . . . . . . . . . . . . . . 7 Sneak Attacks 5 | . . . . . 4 . . . . . 1 . . . . . . . . . . . . . . . . . . . . . Combat Hostiles . | . . . . . . . . . . . . . . . . . . . . . . . . . . . . . . . . . Follow-up Attacks . | . . . . . . . . . . . . . . . . . . . . . . . . . . . . . . . . . Damage Inflicted 72584 | . 1108 1055 1005 . . 326 2956 4818 119 517 449 544 1311 2170 922 1215 4330 7238 1038 1274 930 1924 606 1484 586 1501 488 6956 7793 15149 . 2772 Guns 34305 | . 172 . 388 . . . . 3031 119 288 . 84 569 414 . 1133 867 6967 79 213 . 1181 516 1484 586 . . 4840 5724 5650 . . Cannons 10325 | . 340 215 518 . . 18 1989 909 . . . 181 675 1454 . 82 96 . . . . . . . . . . 282 656 2910 . . Explosions 25561 | . 581 837 90 . . 306 950 640 . 221 449 279 61 280 922 . 3367 254 959 1061 . 743 . . . 1391 443 1589 1413 6133 . 2592 Melee 1289 | . . . . . . . . 164 . . . . . . . . . . . . 930 . 33 . . . . . . . . 162 Ramming 280 | . 15 3 9 . . 2 17 74 . 8 . . 6 22 . . . 17 . . . . 57 . . . . 32 . . . 18 Kinetic 38881 | . 459 215 719 . . 18 1875 3005 119 288 . 265 881 899 . 1215 963 6448 . 114 . 1028 279 592 334 . . 5122 6341 7702 . . Thermal 4250 | . 53 178 187 . . . . 409 . 23 . . 424 1130 27 . 22 592 . . . 75 165 459 234 . . . 79 193 . . Explosive 14201 | . 581 659 90 . . 306 950 . . . . . . . . . . . 959 1061 . 668 . . . 1391 443 1589 47 5235 . 222 Electromagnetic 9592 | . . . . . . . 114 1166 . 198 449 279 . 119 895 . 3345 181 79 99 . 153 72 433 18 . . . 1287 705 . . Impact 164 | . . . . . . . . 164 . . . . . . . . . . . . . . . . . . . . . . . . Slashing 1787 | . . . . . . . . . . . . . . . . . . . . . 930 . 33 . . 110 45 213 . 456 . . Piercing 162 | . . . . . . . . . . . . . . . . . . . . . . . . . . . . . . . . 162 Entropic 3267 | . . . . . . . . . . . . . . . . . . . . . . . . . . . . . 39 858 . 2370 Highest Corruption 82 | . 2 2 4 4 4 4 . 12 12 13 13 66 3 3 3 14 82 9 9 9 9 9 . 3 3 6 1 1 35 26 26 2 Average Corruption 6 | . 1 2 1 4 4 4 . 5 12 12 13 15 1 3 3 5 8 5 9 9 9 9 . 3 3 3 1 1 12 11 26 1 Corruption Purged 46 | . . . . . . . . 14 . . . . . . . 32 . . . . . . . . . . . . . . . . Corruption Blocked 21 | . . . . . . . . 1 . . . . . . . . . . . . . . . . . . . . . 20 . . Effects 548 | . 14 9 10 1 17 3 . 31 22 23 17 41 5 34 9 21 14 44 27 27 17 36 . 16 14 3 5 14 36 34 2 2 Message Errors 131 | . 3 1 2 . 3 1 . 7 7 10 5 7 . 9 1 8 7 10 6 4 3 10 . 4 3 . 2 4 6 7 1 . Matter Fused 124 | . 5 4 2 . 9 . . 7 6 4 4 10 . 9 2 5 2 8 6 10 2 4 . 4 5 . 1 2 6 7 . . Heat Flow Errors 70 | . 1 . . . 2 . . 6 2 3 2 8 3 5 2 1 . 4 4 3 4 6 . 1 3 . . 3 4 3 . . Energy Discharges 60 | . . 3 1 . 1 . . 5 2 1 1 7 1 5 . 1 1 3 2 3 3 4 . 3 . . 1 1 5 5 1 . Parts Rejected 7 | . . . . . . 1 . 1 . . . . . . . . 1 1 . . . 1 . . . . . . 1 1 . . Parts Fused 10 | . . . . . . . . . . 1 . 2 . 1 . . 1 . 1 . 2 . . . . . . . 1 1 . . Data Loss (minor) 60 | . 3 1 3 . 2 1 . 4 2 1 2 3 . 2 4 2 . 4 4 4 3 3 . 1 1 1 . 1 3 3 . 2 Data Loss (major) 29 | . 1 . . 1 . . . . . 2 1 1 . 1 . 2 1 6 1 1 . 3 . 2 1 2 . . 2 1 . . Misfires 17 | . 1 . . . . . . 1 3 1 1 2 . 1 . 1 . 1 . 1 . 2 . . . . 1 1 . . . . Alerts 10 | . . . 1 . . . . . . . . . 1 . . . . 3 1 1 . 1 . . . . . 1 . 1 . . Misdirections 3 | . . . . . . . . . . . . . . . . . 1 . . . . . . . . . . . 1 1 . . Weapon Failures 27 | . . . 1 . . . . . . . 1 1 . 1 . 1 . 4 2 . . 2 . 1 1 . . 1 7 4 . . Overload Shots . | . . . . . . . . . . . . . . . . . . . . . . . . . . . . . . . . . Overflow Damage 1357 | . 14 12 8 . . . 15 24 . 4 . . 42 34 . . 182 45 12 23 282 . . . . 65 . 13 93 218 . 271 Projectiles 177 | . 7 . 1 . . . . 24 . . . . 42 34 . . . . . . . . . . . . . 7 24 38 . . Explosions 894 | . 7 12 7 . . . 15 . . . . . . . . . 182 45 12 23 . . . . . 65 . 6 69 180 . 271 Melee 286 | . . . . . . . . . . 4 . . . . . . . . . . 282 . . . . . . . . . . . Knockbacks 57 | . 7 . 7 . . . 13 6 . . . 2 2 3 . . . . . . . . . . . . . . 4 11 . 2 Impact 6 | . 1 . . . . . . 2 . . . . . 1 . . . . . . . . . . . . . . . . . 2 Kinetic 49 | . 6 . 6 . . . 13 3 . . . 2 2 2 . . . . . . . . . . . . . . 4 11 . . Secondary 2 | . . . 1 . . . . 1 . . . . . . . . . . . . . . . . . . . . . . . . Self-Inflicted Damage 1071 | . . 156 . . . . 48 166 57 41 . 81 . 58 . . 144 . 18 . . . . . . . . . 9 185 . 108 Shots 34 | . . 5 . . . . 2 5 1 2 . 5 . 1 . . 2 . 1 . . . . . . . . . 1 8 . 1 Rammed 39 | . 4 3 1 . . 1 5 6 . 1 . . 2 2 . . 1 2 . . . . 2 . . . . 1 . . . 8 Targets Rammed 40 | . 4 3 1 . . 1 5 7 . 1 . . 2 2 . . 1 2 . . . . 2 . . . . 1 . . . 8 Kicked . | . . . . . . . . . . . . . . . . . . . . . . . . . . . . . . . . . Crushed 1 | . . . . . . . . 1 . . . . . . . . . . . . . . . . . . . . . . . . Highest Temperature 451 | . 102 25 144 . 206 69 225 368 143 209 114 234 200 334 236 111 124 413 238 272 215 259 198 195 199 . . 174 192 451 . . Average Temperature 78 | . 20 8 44 . 93 43 46 118 69 98 65 108 65 99 59 63 43 58 101 87 99 118 98 122 111 . . 94 92 57 . . Received Heat Transfer 5783 | . 81 147 219 . . 108 1075 763 28 59 . 12 261 141 . 6 245 1023 93 111 . 408 45 39 . 25 . 63 119 604 . 108 Effects 4 | . . . . . . . . 3 . . . . . . . . . . . . . 1 . . . . . . . . . . Energy Bleed 2 | . . . . . . . . 1 . . . . . . . . . . . . . 1 . . . . . . . . . . Short Circuit 1 | . . . . . . . . 1 . . . . . . . . . . . . . . . . . . . . . . . . Damage (minor) 1 | . . . . . . . . 1 . . . . . . . . . . . . . . . . . . . . . . . . Siege Activations 5 | . . . . . . . . . . . . . . . . . . 3 . . . 1 . . . . . . . 1 . . Total Turns 123 | . . . . . . . . . . . . . . . . . . 72 . . . 39 . . . . . . . 12 . . Longest Duration 39 | . . . . . . . . . . . . . . . . . . 30 . . . 39 . . . . . . . 12 . . Martial Activations . | . . . . . . . . . . . . . . . . . . . . . . . . . . . . . . . . . Shielding Activations . | . . . . . . . . . . . . . . . . . . . . . . . . . . . . . . . . . Robots Disrupted . | . . . . . . . . . . . . . . . . . . . . . . . . . . . . . . . . . Combat Hostiles . | . . . . . . . . . . . . . . . . . . . . . . . . . . . . . . . . . Robots Corrupted 27 | . . . . . . . . 1 . 1 4 2 . 1 8 . 5 . . . . . . . . . . . 3 2 . . Combat Hostiles 26 | . . . . . . . . 1 . 1 4 2 . 1 8 . 4 . . . . . . . . . . . 3 2 . . Parts Fried 64 | . . . . . . . 1 6 . 1 9 2 . . 8 . 15 . 3 . . 1 . 2 . . . . 12 4 . . Impact Corruptions 1 | . . . . . . . . . . 1 . . . . . . . . . . . . . . . . . . . . . . Robots Melted . | . . . . . . . . . . . . . . . . . . . . . . . . . . . . . . . . . Combat Hostiles . | . . . . . . . . . . . . . . . . . . . . . . . . . . . . . . . . . Parts Melted 6 | . . 1 . . . . . . . . . . . . . . . 1 . . . . . 1 . . . . 3 . . . Heat Transferred 4734 | . 222 200 518 . . . . 700 . 50 . . 50 150 50 . 100 1173 . . . 50 185 629 407 . . . 50 200 . . Parts Sabotaged 2 | . . . . . . . . . . . . . . . . . . 2 . . . . . . . . . . . . . . Parts Stolen . | . . . . . . . . . . . . . . . . . . . . . . . . . . . . . . . . . Parts Stripped . | . . . . . . . . . . . . . . . . . . . . . . . . . . . . . . . . . Power Chain Reactions 12 | . . . . . . . . 1 . 1 . . 1 2 1 . 1 . . . . 1 . . . . . . 1 3 . . Alert | -11 -10 -10 -9 -9 -9 -8 -8 -7 -7 -7 -7 -6 -6 -6 -6 -6 -6 -5 -5 -5 -5 -4 -4 -4 -4 -4 -3 -3 -3 -2 -2 -1 ------- Run | Yrd Mat Min Mat Min Exi Min Mat Fac Low Low Dat Pro Fac Ext Cet Arc Hub Fac Upp Upp Zhi Pro Fac Upp Upp War Pro Res Arm Res Qua Acc Maximum Alert Level 5 | . . . 1 . . . 1 3 . . . . . 2 2 1 5 5 . . . . . . . . . 2 4 5 5 5 Low Security (%) 57 | 100 100 100 71 100 . 100 76 47 . . . . 100 88 . 81 16 . . . . . 100 . . . . 80 3 . . . Level 1 11 | . . . 28 . . . 23 9 . . . . . 2 88 18 9 . . . . . . . . . . 9 35 . . . Level 2 7 | . . . . . . . . 30 . . . . . 9 11 . 23 . . . . . . . . . . 10 11 . . . Level 3 8 | . . . . . . . . 12 . . . . . . . . 3 23 . . . . . . . . . . 14 42 . 7 Level 4 8 | . . . . . . . . . . . . . . . . . 42 27 . . . . . . . . . . 35 20 3 51 Level 5 6 | . . . . . . . . . . . . . . . . . 5 38 . . . . . . . . . . . 36 . 40 High Security . | . . . . . . . . . . . . . . . . . . 10 . . . . . . . . . . . . . . Max Security . | . . . . . . . . . . . . . . . . . . . . . . . . . . . . . . . 96 . Peak Influence 2219 | . 189 167 280 87 . 64 324 763 . . . . 196 449 434 232 1623 2012 . . . . 40 . . . . 517 1377 2219 1615 1659 Initial 1248 | . . 53 33 87 . . 9 134 . . . . . 65 240 100 . 751 . . . . . . . . . . 264 720 1248 1100 Average 433 | . 73 63 132 77 . 40 153 344 . . . . 52 99 323 114 913 1415 . . . . 13 . . . . 181 768 1375 1599 1400 Influence Increases 16729 | . 434 418 530 . . 74 902 1372 20 165 . 100 289 952 284 268 1958 1893 170 180 15 160 283 190 90 175 90 1089 1739 2155 15 719 Destroy 0b10 Robot/C 8640 | . 220 180 380 . . 40 540 780 20 140 . 80 140 500 160 80 540 1000 160 160 . 140 80 160 80 160 80 720 740 1100 . 260 Destroy 0b10 Robot/NC 580 | . 30 5 . . . . 40 85 . . . . 20 30 10 45 85 65 . . 15 . 10 . . . . 10 25 95 . 10 Destroy Leader 1638 | . 54 40 90 . . 10 138 224 . 10 . 20 40 62 . . 124 184 10 20 . 20 30 30 10 . 10 130 164 198 . 20 Allied During Kill 1063 | . . . . . . . . . . . . . . 203 110 106 231 . . . . . . . . . . . 413 . . . Successful Hack 629 | . 28 . 15 . . . 10 51 . . . . 48 66 . . . 102 . . . . 140 . . . . 30 49 90 . . Select Force Hacks 30 | . 30 . . . . . . . . . . . . . . . . . . . . . . . . . . . . . . . Disable Machine 1440 | . 30 90 30 . . . 30 150 . . . . 15 45 . 30 300 300 . . . . . . . . . 30 195 180 . 15 Anti-Garrison Action 300 | . . . . . . . . . . . . . . . . . 300 . . . . . . . . . . . . . . . Destroy Structure 1554 | . 42 88 15 . . 24 99 22 . . . . 11 46 4 7 258 182 . . . . 8 . . . . 94 138 402 . 114 Partial Spotted 15 | . . . . . . . . . . . . . . . . . . . . . . . . . . . . . . . 15 . Lose Combat Pursuer 840 | . . 15 . . . . 45 60 . 15 . . 15 . . . 120 60 . . . . 15 . . 15 . 75 15 90 . 300 Influence Decreases 15594 | . 296 469 393 157 67 50 630 911 551 346 45 100 154 656 463 520 424 1425 1056 535 776 160 276 139 146 22 245 584 871 1309 971 847 Entered New Map 6487 | . . 85 54 137 67 . 15 162 281 44 45 . . 70 191 152 . 783 742 213 761 . . 4 12 2 155 . 241 653 971 647 Time Decay 8052 | . 296 374 329 20 . 40 505 699 270 302 . 100 154 476 262 348 214 522 294 302 15 90 274 132 134 20 90 584 490 526 . 190 Lost Part 705 | . . 10 10 . . 10 110 40 . . . . . 10 10 . 130 120 20 20 . 70 2 3 . . . . . 130 . 10 Lost Ally 350 | . . . . . . . . 10 . . . . . 100 . 20 80 . . . . . . . . . . . 140 . . . Squads Dispatched 98 | . 4 . 2 . . . 5 13 . . . . 5 3 . . 15 17 . . . . 2 . . . . 8 7 15 . 2 Investigation 21 | . 3 . 1 . . . 1 2 . . . . 2 2 . . 1 4 . . . . . . . . . 3 . 2 . . Extermination 21 | . . . . . . . . 6 . . . . 2 . . . 1 3 . . . . 2 . . . . . 2 3 . 2 Reinforcement 35 | . 1 . 1 . . . 4 3 . . . . . 1 . . 8 3 . . . . . . . . . 5 1 8 . . Assault 19 | . . . . . . . . 2 . . . . . . . . 4 7 . . . . . . . . . . 4 2 . . Garrison 2 | . . . . . . . . . . . . . 1 . . . 1 . . . . . . . . . . . . . . . Intercept . | . . . . . . . . . . . . . . . . . . . . . . . . . . . . . . . . . Searches Triggered . | . . . . . . . . . . . . . . . . . . . . . . . . . . . . . . . . . Construction Impeded 6 | . . . . . . . 2 . . . . . . . . . . 1 . . . . . . . . . . . 3 . . Haulers Reinforced 11 | . . . . . . . . . . . . . . . . . 4 1 . . . . . . . . . 2 . 4 . . Active Scanning Responses . | . . . . . . . . . . . . . . . . . . . . . . . . . . . . . . . . . Cargo Convoy Interrupts . | . . . . . . . . . . . . . . . . . . . . . . . . . . . . . . . . . Stealth | -11 -10 -10 -9 -9 -9 -8 -8 -7 -7 -7 -7 -6 -6 -6 -6 -6 -6 -5 -5 -5 -5 -4 -4 -4 -4 -4 -3 -3 -3 -2 -2 -1 --------- Run | Yrd Mat Min Mat Min Exi Min Mat Fac Low Low Dat Pro Fac Ext Cet Arc Hub Fac Upp Upp Zhi Pro Fac Upp Upp War Pro Res Arm Res Qua Acc Distress Signals 37 | . 2 . 1 . . . 3 2 . . . . . 1 2 . 1 5 . . . . 1 . . . . 5 5 6 . 3 Communications Jammed . | . . . . . . . . . . . . . . . . . . . . . . . . . . . . . . . . . Distress Signals . | . . . . . . . . . . . . . . . . . . . . . . . . . . . . . . . . . Times Spotted 643 | . 21 13 23 . . 5 34 57 1 8 6 4 12 30 8 26 35 65 9 6 . 13 15 8 8 23 2 48 45 76 6 36 Peak Tracking Total 19 | . 3 5 3 . . 3 7 6 1 4 4 2 4 4 5 1 10 9 9 3 . 6 4 3 4 11 4 5 6 10 6 19 Tactical Retreats 34 | . . 1 . . . . 2 3 . 1 . . 1 . . . 4 4 . . . . 1 . . 1 . 5 1 4 . 6 Traps | -11 -10 -10 -9 -9 -9 -8 -8 -7 -7 -7 -7 -6 -6 -6 -6 -6 -6 -5 -5 -5 -5 -4 -4 -4 -4 -4 -3 -3 -3 -2 -2 -1 ------- Run | Yrd Mat Min Mat Min Exi Min Mat Fac Low Low Dat Pro Fac Ext Cet Arc Hub Fac Upp Upp Zhi Pro Fac Upp Upp War Pro Res Arm Res Qua Acc Traps Triggered 19 | . 2 . 2 . . . . 3 . . . . 3 3 . . . 2 . . . . . . . . . 1 2 . . 1 Indirectly . | . . . . . . . . . . . . . . . . . . . . . . . . . . . . . . . . . Trap Hack Attempts . | . . . . . . . . . . . . . . . . . . . . . . . . . . . . . . . . . Triggered . | . . . . . . . . . . . . . . . . . . . . . . . . . . . . . . . . . Disarmed . | . . . . . . . . . . . . . . . . . . . . . . . . . . . . . . . . . Reprogrammed 6 | . 6 . . . . . . . . . . . . . . . . . . . . . . . . . . . . . . . Reused . | . . . . . . . . . . . . . . . . . . . . . . . . . . . . . . . . . Traps Extracted . | . . . . . . . . . . . . . . . . . . . . . . . . . . . . . . . . . Installed . | . . . . . . . . . . . . . . . . . . . . . . . . . . . . . . . . . Triggered . | . . . . . . . . . . . . . . . . . . . . . . . . . . . . . . . . . Most Traps Carried 2 | . . . . . . . . . . . . . . . . . . . 2 1 1 . . . . . . . . . . . Machines | -11 -10 -10 -9 -9 -9 -8 -8 -7 -7 -7 -7 -6 -6 -6 -6 -6 -6 -5 -5 -5 -5 -4 -4 -4 -4 -4 -3 -3 -3 -2 -2 -1 ---------- Run | Yrd Mat Min Mat Min Exi Min Mat Fac Low Low Dat Pro Fac Ext Cet Arc Hub Fac Upp Upp Zhi Pro Fac Upp Upp War Pro Res Arm Res Qua Acc Machines Disabled 102 | . 2 6 2 . . . 2 10 . . 1 . 1 4 . 2 22 20 1 . . . . . . . . 2 13 13 . 1 Max in Single Turn 13 | . 1 6 1 . . . 1 6 . . 1 . 1 1 . 1 13 6 1 . . . . . . . . 1 2 1 . 1 Garrison Access 5 | . . . . . . . . 1 . . . . . . . . 2 . . . . . 1 . . . . . . 1 . . Network Hub 3 | . . . . . . . . . . . . . . . . . 3 . . . . . . . . . . . . . . . Energy Cycler 2 | . . . . . . . . . . . . . . 2 . . . . . . . . . . . . . . . . . . Machines Repaired . | . . . . . . . . . . . . . . . . . . . . . . . . . . . . . . . . . Machines Dismantled . | . . . . . . . . . . . . . . . . . . . . . . . . . . . . . . . . . Machines Sabotaged . | . . . . . . . . . . . . . . . . . . . . . . . . . . . . . . . . . Overloaded Fab Kills . | . . . . . . . . . . . . . . . . . . . . . . . . . . . . . . . . . Hacking | -11 -10 -10 -9 -9 -9 -8 -8 -7 -7 -7 -7 -6 -6 -6 -6 -6 -6 -5 -5 -5 -5 -4 -4 -4 -4 -4 -3 -3 -3 -2 -2 -1 --------- Run | Yrd Mat Min Mat Min Exi Min Mat Fac Low Low Dat Pro Fac Ext Cet Arc Hub Fac Upp Upp Zhi Pro Fac Upp Upp War Pro Res Arm Res Qua Acc Machines Accessed 96 | . 6 2 6 . 2 . 7 11 . . 3 . 4 16 . . 1 6 . . 4 . 8 1 . 4 . 2 4 9 . . Terminals 54 | . 5 1 4 . . . 6 5 . . . . 3 15 . . 1 2 . . . . 3 . . . . 1 3 5 . . Fabricators 5 | . . . . . . . . 1 . . . . . . . . . 2 . . . . . . . . . 1 . 1 . . Repair Stations 11 | . . . 1 . . . 1 4 . . . . . 1 . . . 1 . . . . 2 . . . . . 1 . . . Recycling Units 2 | . 1 . . . . . . . . . . . . . . . . . . . . . 1 . . . . . . . . . Scanalyzers 6 | . . . 1 . . . . . . . . . 1 . . . . 1 . . . . 1 . . . . . . 2 . . Garrison Access 3 | . . . . . . . . 1 . . . . . . . . . . . . . . 1 . . . . . . 1 . . Total Hacks 351 | . 19 3 26 . 2 . 26 30 . . 20 . 11 28 . . 3 48 . . 16 . 33 1 . 5 . 10 15 55 . . Successful 192 | . 11 2 18 . 2 . 16 20 . . 20 . 5 14 . . 2 14 . . 16 . 18 1 . 5 . 3 8 17 . . Failed 156 | . 7 . 8 . . . 9 10 . . . . 6 14 . . 1 34 . . . . 15 . . . . 7 7 38 . . Catastrophic 39 | . 1 . . . . . 1 3 . . . . 1 5 . . 1 7 . . . . 2 . . . . 2 3 13 . . Database Lockouts 3 | . 1 1 . . . . 1 . . . . . . . . . . . . . . . . . . . . . . . . . Manual 117 | . 14 2 16 . 1 . 17 8 . . . . 1 8 1 . 3 10 . . . . 9 . . 3 . 2 7 15 . . Terminals 163 | . 16 2 15 . . . 18 13 . . . . 7 26 . . 3 11 . . . . 16 . . . . 2 12 22 . . Fabricators 24 | . . . . . . . . 2 . . . . . . . . . 13 . . . . . . . . . 8 . 1 . . Repair Stations 53 | . . . 6 . . . 8 14 . . . . . 2 . . . 10 . . . . 10 . . . . . 3 . . . Recycling Units 4 | . 3 . . . . . . . . . . . . . . . . . . . . . 1 . . . . . . . . . Scanalyzers 58 | . . . 5 . . . . . . . . . 4 . . . . 14 . . . . 5 . . . . . . 30 . . Garrison Access 4 | . . . . . . . . 1 . . . . . . . . . . . . . . 1 . . . . . . 2 . . Terminal Hacks 82 | . 5 2 4 . 2 . 2 3 . . 20 . 2 10 . . . 1 . . 16 . 5 1 . 5 . . 3 1 . . Record 11 | . . . . . 1 . . . . . 2 . . . . . . . . . 4 . . . . 4 . . . . . . Part Schematic 17 | . 1 . . . . . . . . . 10 . . 2 . . . . . . 4 . . . . . . . . . . . Robot Schematic 5 | . . . . . . . . . . . 5 . . . . . . . . . . . . . . . . . . . . . Robot Analysis 14 | . 2 1 4 . . . 1 . . . . . . . . . . . . . 4 . 1 . . . . . 1 . . . Prototype ID Bank 7 | . . . . . . . . . . . 3 . . . . . . . . . 4 . . . . . . . . . . . Open Door 10 | . . 1 . . . . . . . . . . 1 6 . . . . . . . . . 1 . 1 . . . . . . Branch Access Points 3 | . . . . . . . . 1 . . . . . . . . . 1 . . . . 1 . . . . . . . . . Emergency Access Points 2 | . . . . . . . 1 . . . . . . . . . . . . . . . . . . . . . 1 . . . Fabricator Index 1 | . . . . . . . . . . . . . . . . . . . . . . . 1 . . . . . . . . . Repair Station Index 1 | . . . . . . . . 1 . . . . . . . . . . . . . . . . . . . . . . . . Alert Level 1 | . . . . . . . . . . . . . . . . . . . . . . . . . . . . . . 1 . . Locate Traps 1 | . 1 . . . . . . . . . . . . . . . . . . . . . . . . . . . . . . . Reprogram Traps 1 | . 1 . . . . . . . . . . . . . . . . . . . . . . . . . . . . . . . Dispatch Records 1 | . . . . . . . . . . . . . . 1 . . . . . . . . . . . . . . . . . . Recall Reinforcements 1 | . . . . . . . . . . . . . . 1 . . . . . . . . . . . . . . . . . . Hauler Manifests 1 | . . . . . . . . . . . . . . . . . . . . . . . 1 . . . . . . . . . Registered Components 1 | . . . . . . . . . . . . . 1 . . . . . . . . . . . . . . . . . . . Zone Layout 3 | . . . . . . . . 1 . . . . . . . . . . . . . . 1 . . . . . 1 . . . Proto ID Catalog 1 | . . . . . 1 . . . . . . . . . . . . . . . . . . . . . . . . . . . Fabricator Hacks 9 | . . . . . . . . 2 . . . . . . . . . 4 . . . . . . . . . 2 . 1 . . Load Schematic 4 | . . . . . . . . 1 . . . . . . . . . 2 . . . . . . . . . 1 . . . . Build 5 | . . . . . . . . 1 . . . . . . . . . 2 . . . . . . . . . 1 . 1 . . Repair Station Hacks 40 | . . . 6 . . . 8 10 . . . . . 2 . . . 5 . . . . 7 . . . . . 2 . . . Scan Component 21 | . . . 3 . . . 4 5 . . . . . 1 . . . 3 . . . . 4 . . . . . 1 . . . Repair 19 | . . . 3 . . . 4 5 . . . . . 1 . . . 2 . . . . 3 . . . . . 1 . . . Recycling Unit Hacks 3 | . 2 . . . . . . . . . . . . . . . . . . . . . 1 . . . . . . . . . Process 1 | . 1 . . . . . . . . . . . . . . . . . . . . . . . . . . . . . . . Retrieve Matter 1 | . 1 . . . . . . . . . . . . . . . . . . . . . . . . . . . . . . . Retrieve Components 1 | . . . . . . . . . . . . . . . . . . . . . . . 1 . . . . . . . . . Scanalyzer 22 | . . . 5 . . . . . . . . . 2 . . . . 3 . . . . 2 . . . . . . 10 . . Insert Component 12 | . . . 2 . . . . . . . . . 1 . . . . 2 . . . . 1 . . . . . . 6 . . Analyze 10 | . . . 3 . . . . . . . . . 1 . . . . 1 . . . . 1 . . . . . . 4 . . Garrison Access Hacks 3 | . . . . . . . . 1 . . . . . . . . . . . . . . 1 . . . . . . 1 . . Seal Access 3 | . . . . . . . . 1 . . . . . . . . . . . . . . 1 . . . . . . 1 . . Unauthorized Hacks 33 | . 4 . 3 . . . 6 4 . . . . 1 2 . . 2 1 . . . . 2 . . . . 1 3 4 . . Terminals 32 | . 3 . 3 . . . 6 4 . . . . 1 2 . . 2 1 . . . . 2 . . . . 1 3 4 . . Assimilate 3 | . . . . . . . 1 1 . . . . . . . . . 1 . . . . . . . . . . . . . . Botnet 25 | . 3 . 3 . . . 3 3 . . . . 1 2 . . 1 . . . . . 1 . . . . 1 3 4 . . Disrupt 2 | . . . . . . . 1 . . . . . . . . . . . . . . . 1 . . . . . . . . . Operators 1 | . . . . . . . 1 . . . . . . . . . . . . . . . . . . . . . . . . . Sabotage 1 | . . . . . . . . . . . . . . . . . 1 . . . . . . . . . . . . . . . Fabricators . | . . . . . . . . . . . . . . . . . . . . . . . . . . . . . . . . . Repair Stations . | . . . . . . . . . . . . . . . . . . . . . . . . . . . . . . . . . Recycling Units 1 | . 1 . . . . . . . . . . . . . . . . . . . . . . . . . . . . . . . Tunnel 1 | . 1 . . . . . . . . . . . . . . . . . . . . . . . . . . . . . . . Scanalyzers . | . . . . . . . . . . . . . . . . . . . . . . . . . . . . . . . . . Garrison Access . | . . . . . . . . . . . . . . . . . . . . . . . . . . . . . . . . . Data Cores Recovered 2 | . . . . . . . 1 . . . . . . . . . . . . . . . 1 . . . . . . . . . Used . | . . . . . . . . . . . . . . . . . . . . . . . . . . . . . . . . . Hacking Detections 69 | . 5 . 6 . . . 6 9 . . . . 4 14 1 . 1 6 . . . . 6 . . . . 1 3 7 . . Full Trace Events 19 | . 3 . 2 . . . 1 2 . . . . 2 2 . . . 4 . . . . . . . . . 1 . 2 . . Feedback Events 2 | . . . . . . . . . . . . . 2 . . . . . . . . . . . . . . . . . . . Corruption 2 | . . . . . . . . . . . . . 2 . . . . . . . . . . . . . . . . . . . Feedback Blocked . | . . . . . . . . . . . . . . . . . . . . . . . . . . . . . . . . . Robot Schematics Acquired 5 | . . . . . . . . . . . 5 . . . . . . . . . . . . . . . . . . . . . Robots Built . | . . . . . . . . . . . . . . . . . . . . . . . . . . . . . . . . . Authchips . | . . . . . . . . . . . . . . . . . . . . . . . . . . . . . . . . . Time . | . . . . . . . . . . . . . . . . . . . . . . . . . . . . . . . . . Total Robot Build Rating . | . . . . . . . . . . . . . . . . . . . . . . . . . . . . . . . . . Part Schematics Acquired 23 | . 1 . 2 . . . . . . . 10 . 1 2 . . . . . . 4 . 1 . . . . . . 2 . . Parts Built 7 | . . . . . . . . 1 . . . . . . . . . 3 . . . . . . . . . 1 . 2 . . Authchips . | . . . . . . . . . . . . . . . . . . . . . . . . . . . . . . . . . Time 289 | . . . . . . . . 25 . . . . . . . . . 116 . . . . . . . . . 102 . 46 . . Total Part Build Rating 48 | . . . . . . . . 1 . . . . . . . . . 21 . . . . . . . . . 8 . 18 . . Part Studies Acquired . | . . . . . . . . . . . . . . . . . . . . . . . . . . . . . . . . . Parts Repaired 18 | . . . 3 . . . 4 4 . . . . . 1 . . . 2 . . . . 3 . . . . . 1 . . . Time 951 | . . . 84 . . . 122 196 . . . . . 44 . . . 272 . . . . 125 . . . . . 108 . . . Parts Recycled . | . . . . . . . . . . . . . . . . . . . . . . . . . . . . . . . . . Recycled Matter 244 | . 244 . . . . . . . . . . . . . . . . . . . . . . . . . . . . . . . Retrieved Matter 400 | . 400 . . . . . . . . . . . . . . . . . . . . . . . . . . . . . . . Retrieved Components 3 | . . . . . . . . . . . . . . . . . . . . . . . 3 . . . . . . . . . Parts Scanalyzed 9 | . . . 2 . . . . . . . . . 1 . . . . 1 . . . . . . . . . . . 5 . . Part Schematics Acquired 6 | . . . 2 . . . . . . . . . 1 . . . . . . . . . 1 . . . . . . 2 . . Parts Damaged 3 | . . . . . . . . . . . . . . . . . . 1 . . . . . . . . . . . 2 . . Bothacking | -11 -10 -10 -9 -9 -9 -8 -8 -7 -7 -7 -7 -6 -6 -6 -6 -6 -6 -5 -5 -5 -5 -4 -4 -4 -4 -4 -3 -3 -3 -2 -2 -1 ------------ Run | Yrd Mat Min Mat Min Exi Min Mat Fac Low Low Dat Pro Fac Ext Cet Arc Hub Fac Upp Upp Zhi Pro Fac Upp Upp War Pro Res Arm Res Qua Acc Used RIF Installer . | . . . . . . . . . . . . . . . . . . . . . . . . . . . . . . . . . Robots Hacked 5 | . . . . . 4 . . . . . 1 . . . . . . . . . . . . . . . . . . . . . Non-combat 3 | . . . . . 3 . . . . . . . . . . . . . . . . . . . . . . . . . . . Combat 2 | . . . . . 1 . . . . . 1 . . . . . . . . . . . . . . . . . . . . . Robot Hacks Applied 5 | . . . . . 4 . . . . . 1 . . . . . . . . . . . . . . . . . . . . . parse_system 5 | . . . . . 4 . . . . . 1 . . . . . . . . . . . . . . . . . . . . . Relay Couplers Released . | . . . . . . . . . . . . . . . . . . . . . . . . . . . . . . . . . Fabnet Peak Effective % . | . . . . . . . . . . . . . . . . . . . . . . . . . . . . . . . . . Robots Rewired 4 | . . . . . . . . . . . . . . 4 . . . . . . . . . . . . . . . . . . Allies Hacked 1 | . . . . . . . . . . . . . . . . . . . . . . . . . . . . . 1 . . . Hacks Repelled . | . . . . . . . . . . . . . . . . . . . . . . . . . . . . . . . . . Allies | -11 -10 -10 -9 -9 -9 -8 -8 -7 -7 -7 -7 -6 -6 -6 -6 -6 -6 -5 -5 -5 -5 -4 -4 -4 -4 -4 -3 -3 -3 -2 -2 -1 -------- Run | Yrd Mat Min Mat Min Exi Min Mat Fac Low Low Dat Pro Fac Ext Cet Arc Hub Fac Upp Upp Zhi Pro Fac Upp Upp War Pro Res Arm Res Qua Acc Total Allies 27 | . . . . . . . . 1 . . . . . 11 5 . . . . . . . . . . . . . 10 . . . Largest Group 10 | . . . . . . . . 1 . . . . . 7 9 9 6 . . . . . . . . . . . 10 . . . Highest-Rated Group 727 | . . . . . . . . 10 . . . . . 355 727 727 453 . . . . . . . . . . . 481 . . . Highest-Rated Ally 159 | . . . . . . . . 10 . . . . . 159 152 152 96 . . . . . . . . . . . 58 . . . Total Orders 2 | . . . . . . . . . . . . . . . . 2 . . . . . . . . . . . . . . . . STAY 1 | . . . . . . . . . . . . . . . . 1 . . . . . . . . . . . . . . . . FOLLOW 1 | . . . . . . . . . . . . . . . . 1 . . . . . . . . . . . . . . . . Ally Attacks 370 | . . . . . . . . . . . . . . 122 18 13 70 . . . . . . . . . . . 147 . . . Total Damage 9919 | . . . . . . . . . . . . . . 2697 441 346 3166 . . . . . . . . . . . 3269 . . . Kills 50 | . . . . . . . . . . . . . . 21 . 3 15 . . . . . . . . . . . 11 . . . Allies Corrupted 1 | . . . . . . . . . . . . . . 1 . . . . . . . . . . . . . . . . . . Allies Melted . | . . . . . . . . . . . . . . . . . . . . . . . . . . . . . . . . . Intel | -11 -10 -10 -9 -9 -9 -8 -8 -7 -7 -7 -7 -6 -6 -6 -6 -6 -6 -5 -5 -5 -5 -4 -4 -4 -4 -4 -3 -3 -3 -2 -2 -1 ------- Run | Yrd Mat Min Mat Min Exi Min Mat Fac Low Low Dat Pro Fac Ext Cet Arc Hub Fac Upp Upp Zhi Pro Fac Upp Upp War Pro Res Arm Res Qua Acc Active Infowar (turns) 1908 | . . . . . . . . . . . . . . . . . . . . 78 404 1008 343 . . . . . 3 . . 72 Optics 59 | . . . . . . . . . . . . . . . . . . . . . . . . . . . . . . . . 59 Traps 1833 | . . . . . . . . . . . . . . . . . . . . 78 404 1008 343 . . . . . . . . . Seismic 75 | . . . . . . . . . . . . . . . . . . . . . . . . . . . . . 3 . . 72 Robot Analysis Total 14 | . 2 1 4 . . . 1 . . . . . . . . . . . . . 4 . 1 . . . . . 1 . . . Derelict Logs Recovered 9 | . . . . . . . . . . . . 2 . . . . . . 1 2 . 1 . 2 1 . . . . . . . Drone Launches . | . . . . . . . . . . . . . . . . . . . . . . . . . . . . . . . . . Drone Recoveries . | . . . . . . . . . . . . . . . . . . . . . . . . . . . . . . . . . Exploration | -11 -10 -10 -9 -9 -9 -8 -8 -7 -7 -7 -7 -6 -6 -6 -6 -6 -6 -5 -5 -5 -5 -4 -4 -4 -4 -4 -3 -3 -3 -2 -2 -1 ------------- Run | Yrd Mat Min Mat Min Exi Min Mat Fac Low Low Dat Pro Fac Ext Cet Arc Hub Fac Upp Upp Zhi Pro Fac Upp Upp War Pro Res Arm Res Qua Acc Turns Passed 30049 | 90 1305 937 878 58 697 86 1479 2975 581 670 470 925 820 1767 578 929 459 1625 655 662 431 1008 1046 1005 945 1404 440 1944 1288 1476 33 383 Spaces Moved 14738 | 51 495 361 394 36 429 42 562 1396 333 376 203 342 340 748 303 401 206 695 367 382 223 567 531 575 564 823 266 984 590 560 65 528 Core 616 | 2 . . . . . . . . . . . . . . . . . . . . . . . . . . . . . 21 65 528 Treads 14122 | 49 495 361 394 36 429 42 562 1396 333 376 203 342 340 748 303 401 206 695 367 382 223 567 531 575 564 823 266 984 590 539 . . Legs . | . . . . . . . . . . . . . . . . . . . . . . . . . . . . . . . . . Wheels . | . . . . . . . . . . . . . . . . . . . . . . . . . . . . . . . . . Hover . | . . . . . . . . . . . . . . . . . . . . . . . . . . . . . . . . . Flight . | . . . . . . . . . . . . . . . . . . . . . . . . . . . . . . . . . Fastest Speed 50 | 50 160 240 160 160 160 160 160 160 168 168 168 248 166 165 165 162 160 154 165 166 166 160 160 160 160 160 160 160 166 50 50 50 Average Speed 169 | 155 238 240 160 160 160 160 160 165 168 168 202 248 207 205 173 164 162 162 165 166 166 161 163 160 160 160 160 165 167 173 50 57 Slowest Speed 260 | 160 240 240 160 160 160 160 240 240 168 168 248 248 246 246 245 165 165 244 166 166 166 166 240 160 160 160 160 240 255 260 50 100 Overloaded Moves . | . . . . . . . . . . . . . . . . . . . . . . . . . . . . . . . . . Propulsion Burnouts . | . . . . . . . . . . . . . . . . . . . . . . . . . . . . . . . . . Robots Hopped . | . . . . . . . . . . . . . . . . . . . . . . . . . . . . . . . . . Potential Cave-ins 2 | . . . . . . . . . . . . . . . . . . . . . . . . . . . . . . . . 2 Cave-ins Triggered 1 | . . . . . . . . . . . . . . . . . . 1 . . . . . . . . . . . . . . Teleports 1 | . . . . . . . . . . . . . . . . . . . . . . 1 . . . . . . . . . . Exploration Rate (%) 46 | 4 87 91 35 9 70 10 54 38 55 54 77 54 12 82 61 96 33 18 57 54 60 52 11 62 64 88 44 30 33 13 13 18 Regions Visited 32 Branch Regions 22 Pre-discovered Areas 11 | . 1 1 . . 1 . . . . . 1 . . . . . . . . . 3 1 . 1 1 1 . . . . . . Known Exits Taken 7 | . . . . . . . . 1 . . . . 1 . . . 1 1 . . . . 1 . . . . 1 1 . . . Unknown Exits Taken 25 | 1 1 1 1 1 1 1 1 . 1 1 1 1 . 1 1 1 . . 1 1 1 1 . 1 1 1 1 . . 1 1 . Scrap Searched 19 | . . 1 . . . 1 . . 9 . . 1 . . . . . . 1 1 . . . . 3 . 2 . . . . . Spaces Dug 67 | . 9 13 . . . . . 11 . . . . 1 . . . . . . . . 16 1 . . . . . 4 . . 12 Terrain Destroyed 1558 | . 45 125 16 . . 47 116 15 12 3 . 2 11 22 3 7 338 110 61 68 . 79 5 14 10 20 25 123 78 149 . 54 Melee 12 | . . . . . . . . 10 . . . . . . . . . . . . . . 1 . . . . . . . . 1 Projectile 354 | . . . . . . . 19 3 . . . 2 6 10 . 7 11 98 . . . 8 4 14 10 . . 71 68 23 . . AOE 1187 | . 45 125 16 . . 47 97 2 12 3 . . 5 12 3 . 327 12 61 68 . 71 . . . 20 25 50 10 123 . 53 Terrain Rammed . | . . . . . . . . . . . . . . . . . . . . . . . . . . . . . . . . . Walls Destroyed . | . . . . . . . . . . . . . . . . . . . . . . . . . . . . . . . . . Machines Disabled . | . . . . . . . . . . . . . . . . . . . . . . . . . . . . . . . . . Actions | -11 -10 -10 -9 -9 -9 -8 -8 -7 -7 -7 -7 -6 -6 -6 -6 -6 -6 -5 -5 -5 -5 -4 -4 -4 -4 -4 -3 -3 -3 -2 -2 -1 --------- Run | Yrd Mat Min Mat Min Exi Min Mat Fac Low Low Dat Pro Fac Ext Cet Arc Hub Fac Upp Upp Zhi Pro Fac Upp Upp War Pro Res Arm Res Qua Acc Total 17864 | 58 566 398 560 37 441 54 995 1788 346 393 249 385 399 902 347 602 273 966 394 394 270 611 673 610 587 911 279 1162 742 816 64 592 Wait 1093 | . 8 . 78 . . . 276 109 . 1 . 8 3 38 6 122 10 120 . . . 8 89 . 4 27 . 72 24 51 . 39 Move 14706 | 50 494 360 393 35 428 41 561 1395 332 375 202 341 339 747 302 400 205 694 366 381 222 566 530 574 563 822 265 983 589 559 64 528 Hop . | . . . . . . . . . . . . . . . . . . . . . . . . . . . . . . . . . Pick Up 234 | 1 12 2 7 1 2 3 18 26 2 1 22 3 6 11 12 8 3 16 4 2 6 2 12 4 1 13 . 6 7 21 . . Fast Attach 176 | 6 3 . 3 . . 1 6 14 . . 2 . 6 2 1 6 6 20 . 1 10 2 6 3 6 8 6 15 18 21 . 4 Attach 108 | . . 1 5 . 1 2 11 7 . . 2 . 2 1 3 5 10 12 3 1 1 7 3 2 . 3 . 7 4 13 . 2 Detach 25 | . 2 . . . . . 1 . . . . . 2 . . 1 . 6 . . . 1 1 . . 2 . 3 1 4 . 1 Swap 216 | 1 3 5 9 . 1 . 19 46 5 2 6 12 5 13 3 8 6 13 3 . 3 2 9 3 . 11 1 7 12 8 . . Drop 278 | . . . 5 1 5 . 17 37 2 1 8 3 12 14 14 11 5 3 1 . 17 1 8 6 6 23 6 17 28 26 . 1 Fire 902 | . 40 27 59 . . 6 81 131 3 12 6 18 22 34 6 41 27 80 16 9 . 22 10 17 7 2 1 51 59 113 . 2 Melee 43 | . . . . . 4 . . 16 . . 1 . . . . . . . 1 . 11 . 3 . . . . . . . . 7 Ram 8 | . . . . . . . . . . . . . . . . . . . . . . . . . . . . . . . . 8 Kick . | . . . . . . . . . . . . . . . . . . . . . . . . . . . . . . . . . Crush 32 | . 4 3 1 . . 1 5 7 . 1 . . 2 2 . . 1 2 . . . . 2 . . . . 1 . . . . Escape Stasis 5 | . . . . . . . . . . . . . . 5 . . . . . . . . . . . . . . . . . . Rewire 38 | . . . . . . . . . 2 . . . . 35 . . . . . . . . . 1 . . . . . . . . Trap . | . . . . . . . . . . . . . . . . . . . . . . . . . . . . . . . . . Miscellaneous . | . . . . . . . . . . . . . . . . . . . . . . . . . . . . . . . . . Route ------- -11/Scrapyard -10/Materials (discovered 6 exits: *Mat x3 / *Min x2 / [*Sub]) -10/Mines (discovered 2 exits: *Mat x2) -9/Materials -9/Mines -9/Exiles -8/Mines -8/Materials -7/Factory (discovered 5 exits: *Fac x2 / *Sto / *Low x2) -7/Lower Caves -7/Lower Caves -7/Data Miner -6/Proximity Caves -6/Factory (discovered 5 exits: Fac x2 / Low / *Ext x2) -6/Extension (discovered 2 exits: *Fac / *Cet) -6/Cetus (discovered 2 exits: *Fac / [*Arc]) -6/Archives (discovered 3 exits: *Fac / *Hub x2) -6/Hub_04(d) -5/Factory (discovered 3 exits: *Fac / *Upp x2) -5/Upper Caves -5/Upper Caves -5/Zhirov -4/Proximity Caves -4/Factory (discovered 2 exits: *Upp x2) -4/Upper Caves -4/Upper Caves -4/Warlord -3/Proximity Caves -3/Research (discovered 2 exits: *Arm / *Tes) -3/Armory -2/Research -2/Quarantine -1/Access History --------- Turn | Location | Event 31 | -11/Scrapyard | Discovered new exit (range 15) 91 | -11/Scrapyard | Entered Materials 263 | -10/Materials | Discovered new exit (range 12) 341 | -10/Materials | Build established: Mutant 519 | -10/Materials | Central database locked down 588 | -10/Materials | Discovered new exit (range 5) 826 | -10/Materials | Discovered new exit (range 14) 941 | -10/Materials | Discovered new exit (range 10) 1022 | -10/Materials | Discovered new exit (range 14) 1309 | -10/Materials | Discovered new exit (range 9) 1396 | -10/Materials | Entered Mines 1397 | -10/Mines | Learned location of Storage (-7) 1585 | -10/Mines | Discovered new exit (range 7) 1622 | -10/Mines | Found a hidden stash of uninstalled traps 1719 | -10/Mines | Found the Drone Emporium 1870 | -10/Mines | Excavation squad dispatched 1870 | -10/Mines | A large section of the Mines collapsed 1934 | -10/Mines | Central database locked down 2316 | -10/Mines | Discovered new exit (range 8) 2333 | -10/Mines | Entered Materials 2333 | -9/Materials | Evolved 2 slots: Propulsion x1, Utility x1 2582 | -9/Materials | Repaired Lgt. Treads 2609 | -9/Materials | Repaired Lgt. Treads 2642 | -9/Materials | Repaired Imp. Treads 2843 | -9/Materials | Discovered new exit (range 8) 3211 | -9/Materials | Entered Mines 3218 | -9/Mines | Received a Rocket Launcher from a helpful Derelict 3263 | -9/Mines | Deemed a non-threat by the Exiles lab entrance 3263 | -9/Mines | Discovered new exit (range 5) 3269 | -9/Mines | Entered Exiles 3309 | -9/Exiles | Met 8R-AWN 3334 | -9/Exiles | Met EX-HEX 3350 | -9/Exiles | Build established: Scavenger-Mutant 3474 | -9/Exiles | Met EX-BIN 3498 | -9/Exiles | Aligned with FarCom system 3500 | -9/Exiles | Given EX-Vault access code 3537 | -9/Exiles | Opened EX-Vault 3548 | -9/Exiles | Found Superbattery 3578 | -9/Exiles | Warned to stay clear of 0b10 Research branches 3623 | -9/Exiles | Met EX-DEC 3667 | -9/Exiles | Learned location of Zion (-6) 3945 | -9/Exiles | Discovered new exit (range 14) 3966 | -9/Exiles | Left Exiles lab with Superbattery 3966 | -9/Exiles | Entered Mines 4036 | -8/Mines | Discovered new exit (range 11) 4052 | -8/Mines | Entered Materials 4052 | -8/Materials | Evolved 2 slots: Propulsion x1, Utility x1 4198 | -8/Materials | Destroyed 9 combat bots 4625 | -8/Materials | Repaired Imp. Light Cannon 4658 | -8/Materials | Repaired Rocket Launcher 4685 | -8/Materials | Repaired Lgt. Treads 4727 | -8/Materials | Repaired Imp. Light Cannon 4892 | -8/Materials | Central database locked down 5403 | -8/Materials | Lost 6 parts (3n2u1w) 5488 | -8/Materials | Discovered new exit (range 16) 5531 | -8/Materials | Entered Factory 5531 | -7/Factory | Evolved 2 slots: Propulsion x1, Weapon x1 5725 | -7/Factory | Discovered new exit (range 12) 5875 | -7/Factory | Build established: Skirmisher 6467 | -7/Factory | Fabricated Huge Storage Unit (x1) 6509 | -7/Factory | Build established: Scavenger-Skirmisher 6598 | -7/Factory | Discovered new exit (range 14) 7161 | -7/Factory | Build established: Scavenger-Tank 7297 | -7/Factory | Identified exit to Storage 7297 | -7/Factory | Identified exit to Lower Caves 7473 | -7/Factory | Repaired Broken Arm. Treads 7531 | -7/Factory | First assault squad dispatched 7714 | -7/Factory | Repaired Imp. Shield Generator? 7724 | -7/Factory | Build established: Mutant 7755 | -7/Factory | Found Powered Armor 7763 | -7/Factory | Found Powered Armor 7812 | -7/Factory | Discovered new exit (range 15) 7832 | -7/Factory | Repaired Arm. Treads? 8212 | -7/Factory | Build established: Tank 8349 | -7/Factory | Repaired Med. Treads 8368 | -7/Factory | System corruption reached 10% 8506 | -7/Factory | Entered Lower Caves 8679 | -7/Lower Caves | Attracted the attention of an 0b10 checkpoint 8707 | -7/Lower Caves | Found DCF Scrap (13 items) 9031 | -7/Lower Caves | Discovered new exit (range 7) 9087 | -7/Lower Caves | Entered another Lower Caves area 9413 | -7/Lower Caves | Attracted the attention of an 0b10 checkpoint 9491 | -7/Lower Caves | Discovered new exit (range 10) 9757 | -7/Lower Caves | Entered Data Miner 9757 | -7/Data Miner | Discovered new exit (range 6) 9789 | -7/Data Miner | Met Data Miner 9844 | -7/Data Miner | Learned location of Section 7 (-2) 9844 | -7/Data Miner | Acquired the access code to Warlord's prototype stash 9868 | -7/Data Miner | Received God Mode back door access code from Data Miner 9926 | -7/Data Miner | Data Conduit disabled 10041 | -7/Data Miner | Build established: Mutant 10227 | -7/Data Miner | Entered Proximity Caves 10505 | -6/Proximity Caves | Learned 12 Factory zone layouts 10543 | -6/Proximity Caves | Build established: Scavenger-Tank 10675 | -6/Proximity Caves | Attracted the attention of an 0b10 checkpoint 11003 | -6/Proximity Caves | Discovered new exit (range 9) 11132 | -6/Proximity Caves | System corruption reached 30% 11152 | -6/Proximity Caves | Entered Factory 11152 | -6/Factory | Evolved 2 slots: Propulsion x1, Weapon x1 11153 | -6/Factory | Identified exit to Lower Caves 11154 | -6/Factory | Identified exit to Extension 11154 | -6/Factory | Identified exit to Factory 11737 | -6/Factory | Garrison activated, responded to threat 11954 | -6/Factory | Build established: Tank 11972 | -6/Factory | Entered Extension 12430 | -6/Extension | Build established: Scavenger-Tank 12561 | -6/Extension | Rescued a captive Derelict 12583 | -6/Extension | Rescued a captive Derelict 12645 | -6/Extension | Rescued a captive Derelict 12657 | -6/Extension | Rescued a captive Derelict 12691 | -6/Extension | Rescued a captive Derelict 12783 | -6/Extension | Rescued A7 12813 | -6/Extension | Rescued a captive Derelict 13132 | -6/Extension | Spotted B-75 Beast 13149 | -6/Extension | Allies destroyed B-75 Beast 13150 | -6/Extension | Spotted B-75 Beast 13160 | -6/Extension | Allies destroyed B-75 Beast 13208 | -6/Extension | Lost 3 allies 13531 | -6/Extension | Energy Cycler disabled 13536 | -6/Extension | Rescued a captive Derelict 13593 | -6/Extension | Lost 3 allies 13647 | -6/Extension | Repaired Powered Armor 13703 | -6/Extension | Discovered exit to Factory (range 10) 13704 | -6/Extension | Discovered new exit (range 6) 13739 | -6/Extension | Entered Cetus 13739 | -6/Cetus | Accompanied by 4 allies (A7) 13744 | -6/Cetus | Acquired a Cetus Manufacturing Module code from A7 13760 | -6/Cetus | Spotted Cetus Guard 13760 | -6/Cetus | Spotted Cetus Guard 13764 | -6/Cetus | Spotted Cetus Guard 13765 | -6/Cetus | Destroyed Cetus Guard 13765 | -6/Cetus | Spotted Cetus Guard 13769 | -6/Cetus | Destroyed Cetus Guard 13771 | -6/Cetus | Destroyed Cetus Guard 13774 | -6/Cetus | Destroyed Cetus Guard 13838 | -6/Cetus | Started Cetus Manufacturing Module 13858 | -6/Cetus | Discovered new exit (range 16) 13863 | -6/Cetus | Manufactured an Enhanced Grunt 13888 | -6/Cetus | Manufactured an Enhanced Grunt 13902 | -6/Cetus | Spotted Cetus Guard 13902 | -6/Cetus | Spotted Cetus Guard 13906 | -6/Cetus | Spotted Cetus Guard 13906 | -6/Cetus | Spotted Cetus Guard 13908 | -6/Cetus | Destroyed Cetus Guard 13911 | -6/Cetus | Destroyed Cetus Guard 13911 | -6/Cetus | Destroyed Cetus Guard 13912 | -6/Cetus | Destroyed Cetus Guard 13913 | -6/Cetus | Manufactured an Enhanced Grunt 13928 | -6/Cetus | Discovered exit to Factory (range 15) 13938 | -6/Cetus | Manufactured an Enhanced Grunt 13941 | -6/Cetus | Met Revision 17 13963 | -6/Cetus | Manufactured an Enhanced Grunt 14317 | -6/Cetus | Entered Archives 14317 | -6/Archives | Accompanied by 9 allies (A7) 14361 | -6/Archives | Discovered new exit (range 15) 14462 | -6/Archives | Discovered new exit (range 16) 14517 | -6/Archives | Discovered exit to Factory (range 16) 14563 | -6/Archives | System corruption reached 10% 15246 | -6/Archives | Entered Hub_04(d) 15246 | -6/Hub_04(d) | Accompanied by 7 allies 15273 | -6/Hub_04(d) | Discovered exit to Factory (range 15) 15311 | -6/Hub_04(d) | Spotted B-75 Beast 15322 | -6/Hub_04(d) | Allies destroyed B-75 Beast 15399 | -6/Hub_04(d) | Lost 4 allies 15487 | -6/Hub_04(d) | Network Hub disabled 15487 | -6/Hub_04(d) | Garrison activated, responded to threat 15514 | -6/Hub_04(d) | Destroyed 14 combat bots 15525 | -6/Hub_04(d) | Spotted Lightning 15531 | -6/Hub_04(d) | Spotted Lightning 15531 | -6/Hub_04(d) | Spotted Lightning 15564 | -6/Hub_04(d) | Lost 5 parts (1p3n1u) 15577 | -6/Hub_04(d) | Network Hub disabled 15597 | -6/Hub_04(d) | Network Hub disabled 15639 | -6/Hub_04(d) | Core integrity fell below 50% 15681 | -6/Hub_04(d) | Lost 3 parts (1n2w) 15687 | -6/Hub_04(d) | System corruption reached 30% 15705 | -6/Hub_04(d) | Entered Factory 15705 | -5/Factory | Evolved 2 slots: Power x1, Weapon x1 15732 | -5/Factory | Lost 3 parts (2n1w) 15787 | -5/Factory | Fabricated Adv. Medium Treads? 16005 | -5/Factory | First assault squad dispatched 16045 | -5/Factory | Crushed by falling debris 16129 | -5/Factory | Destroyed 11 combat bots 16273 | -5/Factory | Fabricated Hvy. Siege Treads (x1) 16407 | -5/Factory | Lost 4 parts (2p1n1w) 16415 | -5/Factory | Destroyed 10 combat bots 16528 | -5/Factory | Identified exit to Upper Caves 16712 | -5/Factory | Discovered new exit (range 16) 16799 | -5/Factory | Repaired Broken Centrium Heavy Treads? 17001 | -5/Factory | Repaired Broken Centrium Heavy Treads 17158 | -5/Factory | High security lockdown imminent 17238 | -5/Factory | High security lockdown engaged 17330 | -5/Factory | Entered Upper Caves 17352 | -5/Upper Caves | Learned Factory garrison access intel 17455 | -5/Upper Caves | Destroyed 8 combat bots 17927 | -5/Upper Caves | Discovered new exit (range 16) 17972 | -5/Upper Caves | Found Alien Artifact 17985 | -5/Upper Caves | Entered another Upper Caves area 18268 | -5/Upper Caves | Learned Factory stockpile data 18553 | -5/Upper Caves | Learned Factory security intel 18624 | -5/Upper Caves | Discovered new exit (range 15) 18647 | -5/Upper Caves | Entered Zhirov 18650 | -5/Zhirov | Discovered new exit (range 3) 18679 | -5/Zhirov | Met Zhirov 18718 | -5/Zhirov | Learned location of Quarantine (-2) 18718 | -5/Zhirov | Learned location of Testing (-3) 18718 | -5/Zhirov | Learned location of Command (-1) 18728 | -5/Zhirov | Zhirov requested help retrieving the SGEMP Prototype 18763 | -5/Zhirov | Found Alien Artifact 18763 | -5/Zhirov | Identified Integrated Dissipator 18763 | -5/Zhirov | Installed Integrated Dissipator, increased core heat dissipation (+20) 18942 | -5/Zhirov | Found Alien Artifact 18952 | -5/Zhirov | Build established: Scavenger-Mutant 19078 | -5/Zhirov | Entered Proximity Caves 19107 | -4/Proximity Caves | Spotted B-86 Titan 19296 | -4/Proximity Caves | Destroyed B-86 Titan 19319 | -4/Proximity Caves | Attracted the attention of an 0b10 base 19326 | -4/Proximity Caves | Lost 4 parts (1p3u) 19329 | -4/Proximity Caves | Identified Transdimensional Reconstructor 19329 | -4/Proximity Caves | Warped through subspace 19350 | -4/Proximity Caves | Build established: Scavenger-Tank 19676 | -4/Proximity Caves | Ambushed by research squad 19728 | -4/Proximity Caves | Lost 4 parts (4w) 20006 | -4/Proximity Caves | Discovered new exit (range 8) 20086 | -4/Proximity Caves | Entered Factory 20086 | -4/Factory | Evolved 2 slots: Weapon x2 20089 | -4/Factory | Loaded intel: 4 garrison access locations 20253 | -4/Factory | Identified exit to Upper Caves 20481 | -4/Factory | Build established: Scavenger-Executioner 20689 | -4/Factory | Repaired Broken Centrium Heavy Treads 20848 | -4/Factory | Repaired Hvy. Siege Treads? 20920 | -4/Factory | Repaired Adv. KE Penetrator 21132 | -4/Factory | Entered Upper Caves 21636 | -4/Upper Caves | Learned Research interactive machine intel 22087 | -4/Upper Caves | Discovered new exit (range 12) 22137 | -4/Upper Caves | Entered another Upper Caves area 22524 | -4/Upper Caves | Ambushed by wild Derelicts 22959 | -4/Upper Caves | Discovered new exit (range 12) 23082 | -4/Upper Caves | Entered Warlord 23160 | -4/Warlord | System corruption cleaned by Quarantine Array 23454 | -4/Warlord | Learned Armory repair station intel 23454 | -4/Warlord | Learned 4 Armory zone layouts 23495 | -4/Warlord | Received a Watcher feed algorithm from an ecstatic Tinkerer 23497 | -4/Warlord | Ran a Watcher feed algorithm 23996 | -4/Warlord | Warlord's base attacked by MAIN.C 24039 | -4/Warlord | Found Prototype Special Weapon 24040 | -4/Warlord | Identified RU-N14's Throwing Claymores v3 24043 | -4/Warlord | Found RU-N14's Throwing Claymores v3 24048 | -4/Warlord | Found RU-N14's Throwing Claymores v3 24052 | -4/Warlord | Found RU-N14's Throwing Claymores v3 24096 | -4/Warlord | Opened Warlord's prototype stash 24108 | -4/Warlord | Found Prototype Reactor 24108 | -4/Warlord | Identified Vortex Chain Reactor 24124 | -4/Warlord | Found Prototype Device 24124 | -4/Warlord | Identified Exp. Focal Shield 24141 | -4/Warlord | Found Prototype Device 24141 | -4/Warlord | Identified Exp. Phase Shifter 24239 | -4/Warlord | Found Prototype Energy Gun 24239 | -4/Warlord | Identified Vortex Rail 24249 | -4/Warlord | Found Prototype Energy Cannon 24249 | -4/Warlord | Identified Vortex Cannon 24253 | -4/Warlord | Found Vortex Cannon 24263 | -4/Warlord | Found Vortex Rail 24277 | -4/Warlord | Found Prototype Launcher 24346 | -4/Warlord | Warlord forces counterattacked 24396 | -4/Warlord | Spotted Executioner 24417 | -4/Warlord | Spotted Striker 24427 | -4/Warlord | Spotted Striker 24435 | -4/Warlord | Spotted Executioner 24440 | -4/Warlord | Found Corrupted Prototype Device 24440 | -4/Warlord | Identified Adv. Kinecellerator 24455 | -4/Warlord | Destroyed Executioner 24465 | -4/Warlord | Discovered new exit (range 14) 24476 | -4/Warlord | Destroyed 8 combat bots 24485 | -4/Warlord | Lost 14 allies 24486 | -4/Warlord | Entered Proximity Caves 24894 | -3/Proximity Caves | Spotted B-86 Titan 24916 | -3/Proximity Caves | Discovered new exit (range 4) 24926 | -3/Proximity Caves | Entered Research 24926 | -3/Research | Evolved 2 slots: Weapon x2 24926 | -3/Research | Identified Vortex Catalyst Activator 24927 | -3/Research | Identified exit to Testing 24928 | -3/Research | Loaded intel: 43 interactive machine locations 25126 | -3/Research | Revision forces began assault on 0b10 25154 | -3/Research | Found Prototype Hackware 25241 | -3/Research | Fabricated Centrium Heavy Treads (x1) 25251 | -3/Research | Met up with Revision 17++ 25381 | -3/Research | Discovered new exit (range 16) 25470 | -3/Research | Identified exit to Armory 25626 | -3/Research | Research terminal network offline 26010 | -3/Research | Lost 3 allies 26528 | -3/Research | Spotted Striker 26537 | -3/Research | Destroyed Striker 26582 | -3/Research | Spotted Striker 26601 | -3/Research | Destroyed Striker 26633 | -3/Research | Spotted Striker 26635 | -3/Research | Destroyed Striker 26715 | -3/Research | Spotted Striker 26724 | -3/Research | Destroyed Striker 26783 | -3/Research | Spotted Executioner 26788 | -3/Research | Destroyed Executioner 26870 | -3/Research | Entered Armory 26871 | -3/Armory | Identified exit to Research 26872 | -3/Armory | Loaded intel: 2 repair station locations 27352 | -3/Armory | Assisted by bots powering up and referring to "LRC-V3" 27370 | -3/Armory | First assault squad dispatched 27410 | -3/Armory | Found Gamma Bomb Array 27663 | -3/Armory | Spotted B-86 Titan 27694 | -3/Armory | Allies destroyed B-86 Titan 27737 | -3/Armory | System corruption reached 10% 27743 | -3/Armory | System corruption reached 30% 27750 | -3/Armory | P-80 Master assimilated allied Veteran 8c 27751 | -3/Armory | P-80 Master assimilated allied Veteran 8g 27910 | -3/Armory | Repaired Centrium Heavy Treads? 27944 | -3/Armory | Allied Derelicts emerged from ambush trap array 27962 | -3/Armory | Found Gamma Bomb Array 27968 | -3/Armory | Found Fusion Bomb Launcher 28111 | -3/Armory | Lost 3 allies 28158 | -3/Armory | Entered Research 28158 | -2/Research | Evolved 2 slots: Weapon x2 28187 | -2/Research | Identified Exp. System Shield 28575 | -2/Research | Fabricated Enh. Hardcell Cannon? 28615 | -2/Research | Found Prototype Launcher 28615 | -2/Research | Identified Gui. Micro-nuke Launcher 28634 | -2/Research | Spotted B-90 Cyclops 28654 | -2/Research | Destroyed B-90 Cyclops 28673 | -2/Research | Found Gui. Micro-nuke Launcher 28823 | -2/Research | Destroyed 11 combat bots 29129 | -2/Research | Destroyed 10 combat bots 29243 | -2/Research | System corruption reached 10% 29252 | -2/Research | Found Prototype Launcher 29252 | -2/Research | Identified Tesla Bomb Launcher 29255 | -2/Research | Found Corrupted Tesla Bomb Launcher 29266 | -2/Research | Lost 7 parts (1p1n2u3w) 29389 | -2/Research | Lost 4 parts (1n3w) 29408 | -2/Research | First assault squad dispatched 29565 | -2/Research | Spotted B-90 Cyclops 29589 | -2/Research | Destroyed B-90 Cyclops 29601 | -2/Research | Discovered new exit (range 16) 29621 | -2/Research | Released all parts (19) 29634 | -2/Research | Entered Quarantine 29635 | -2/Quarantine | Maximum security lockdown engaged 29665 | -2/Quarantine | Discovered new exit (range 4) 29667 | -2/Quarantine | Entered Access 29667 | -1/Access | Evolved 2 slots: Weapon x2 29686 | -1/Access | Spotted B-99 Colossus 29870 | -1/Access | Core integrity fell below 50% 29895 | -1/Access | Core integrity fell below 20% 29904 | -1/Access | Build established: Mutant 30050 | -1/Access | Destroyed by H-88 Terminator with KE Penetrator Last Messages --------------- 29892_ Triggered Hellfire Trap. 29892_ An explosion rips through the floor. 29892_ S-43 Plague destroyed. 29892_ G-73 Enforcer destroyed. 29894_ Slug penetrates Wall. 29894_ Penetrated by Slug. 29897_ Slug penetrates Wall. 29898_ Penetrated by Slug. 29900_ R-10 Processor collects Xenon Bombardment Thruster. 29901_ K-01 Serf collects debris. 29926_ System corrupted: Component data lost. 29978_ Acquired Seismic Detector. 29991_ Acquired Exp. Optical Array. 29993_ Acquired Unknown Device. 29993_ Identified Adv. Weight Redist. System. 30016_ System corrupted: Component data lost. 30034_ ALERT: Potential suspicious activity detected, Programmers report to Access Zone 9U. 30047_ Slug penetrates Wall. 30050_ Penetrated by Slug. Map ----- +----------------------------------------------------+ | ?????????????????????????????????????????????????? | | ?????????????????????????????????????????????????? | | ?????????????????????????????????????????????????? | | ???????????????????????? ????????????????????????? | | ??????????????????????? ????????????????????????? | | ??????????????????????? ????????????????????????? | | ??????????????????????? ????????????????????????? | | ??????????????????????? ????????????????????????? | | ???????????????????????# ????????????????????????? | | ??????????????????????? k????????????????????????? | | ???????????????????????# ????????????????????????? | | ???????????????????????# ????????????????????????? | | ?????????????????????### ##??????????????????????? | | ?????????????????????# ??????????????????????? | | ?????????????????????# ??????????????????????? | | ?????????????????????# ??????????????????????? | | ?????????????????????? k ??????????????????????? | | ?????????????????????? ??????????????????????? | | ??????????????????????#h #??????????????????????? | | ??????????????????????# hk#??????????????????????? | | ??????????????????????# #??????????????????????? | | ???? ???????????????# #??????????????????????? | | ???# ???????????????# #??????????????????????? | | ???# ?????????????# #??????????????????????? | | ???# ?????????????# #??????????????????????? | | ???# ????????????# @#??????????????????????? | | ??## ###########?# #????????????#########?? | | ??# #?# #??????????? #? | | ??# #?# #??????????? #? | | ??# #?# #?????????? " #? | | ??+ " #?# k#??#######? """ #? | | ??# """" #?# #### # """ #? | | ??# """"" #?# # " #? | | ??# """"" #?# p + #? | | ??# """" #?# # #? | | ??# " #?######## # #? | | ??# ########### ##? "" "" #? | | ??# # ##p #?? ""R"" #? | | ??# # ## #??? """" #? | | ??# + !!!## #???###########? | | ??# # !!!## #??????????????? | | #### # ## #??????????????? | | ########### ###########????? | | | | """ """ | | """G""" | | ###########################+################# | | ??????????# " #?????????????????????????# | | ??????????# """ #?????????????????????????? | | ########### """ #?????????????????????????? | +----------------------------------------------------+ Best States ------------- Heat Dissipation 120 Coolant Potential 100 Energy Generation 55 Energy Capacity 1930 Matter Stores 300 Matter Capacity 300 Sight Range 23 Terrain Scan Density 10 Additional Mass Support 9 Corruption Block 11 Armor Coverage 800 Resistance: KI 30 Resistance: TH 25 Resistance: EM 25 Core Shielding 20 Propulsion Shielding 90 Phase Shifting 20 Evasion (%) 60 Recoil Reduction 6 Particle Charging 30 Kinecelleration 50 Offensive Hacking 14 Defensive Hacking 16 Authchip Count 1 Item Schematics ----------------- Huge Storage Unit | -10/Materials | Hacked Imp. Treads | -9/Materials | Scanalyzed Ion Engine | -9/Materials | Scanalyzed Combat Drone Bay | -7/Data Miner | Free Lgt. Regenerative Plating | -7/Data Miner | Free Biomechanical Wings | -7/Data Miner | Free Ion Burst Cannon | -7/Data Miner | Free Linear Gravjet | -7/Data Miner | Free Thermal Defense Suite | -7/Data Miner | Free Imp. Weapon Cycler | -7/Data Miner | Free Imp. Remote Datajack | -7/Data Miner | Free Fusion Compressor | -7/Data Miner | Free Adv. Medium Treads | -7/Data Miner | Free Powered Armor | -6/Factory | Scanalyzed Hvy. Machine Gun | -6/Extension | Hacked Hvy. Siege Treads | -6/Extension | Hacked Assault Drone Bay | -5/Zhirov | Free Exp. Heat Sink | -5/Zhirov | Free Exp. Optical Array | -5/Zhirov | Free Imp. Arc Thrower | -5/Zhirov | Free Centrium Heavy Treads | -4/Factory | Scanalyzed Adv. Kinecellerator | -2/Research | Scanalyzed Hvy. Antimatter Reactor | -2/Research | Scanalyzed Robot Schematics ------------------ E-15 Imp | -7/Data Miner | Free G-47 Trooper | -7/Data Miner | Free H-55 Commando | -7/Data Miner | Free A-15 Conveyor | -7/Data Miner | Free B-48 Gladiator | -7/Data Miner | Free Fabricated ------------ Huge Storage Unit | x1 | -7/Factory Adv. Medium Treads | x2 | -5/Factory Hvy. Siege Treads | x1 | -5/Factory Centrium Heavy Treads | x1 | -3/Research Enh. Hardcell Cannon | x2 | -2/Research | Preloaded Repaired ---------- Lgt. Treads | 5% | -9/Materials Lgt. Treads | 21% | -9/Materials Imp. Treads | 71% | -9/Materials Imp. Light Cannon | 6% | -8/Materials Rocket Launcher | 31% | -8/Materials Lgt. Treads | 29% | -8/Materials Imp. Light Cannon | 62% | -8/Materials Arm. Treads | 14% | -7/Factory | Broken Imp. Shield Generator | 12% | -7/Factory Arm. Treads | 42% | -7/Factory Med. Treads | 36% | -7/Factory Powered Armor | 6% | -6/Extension Centrium Heavy Treads | 16% | -5/Factory | Broken Centrium Heavy Treads | 15% | -5/Factory | Broken Centrium Heavy Treads | 10% | -4/Factory | Broken Hvy. Siege Treads | 12% | -4/Factory Adv. KE Penetrator | 11% | -4/Factory Centrium Heavy Treads | 29% | -3/Armory Studied --------- None Alien Tech Used ----------------- Integrated Dissipator Transdimensional Reconstructor Achievements -------------- None Challenges ------------ None Game ------ Seed DynamicQuantumPlatform Manual? 0 Play Time 04:44:37 Cumulative 359.3 hours Start 2025.11.29 @ 05:55:09 End 2025.11.29 @ 23:10:08 Sessions 3 Manual Loads 0 Difficulty Rogue Special Mode None Game No. 365 Rogue 361 Adventurer 3 Explorer 1 Win Type - Total 3 Types 2/0/1/0/0/0/0/0/0/0 Lore% 83 Gallery% 79 Achievement% 66 Wizard Run 0 Options --------- Layout 0 ASCII 0 Keyboard 0 Movement Mouse Keybinds 0 Fullscreen 2 Font 18/SmallcapsGlow Map View 76x50 Zoom Use 0% Tactical HUD 1 Map Filters NONE Filters NONE Steam 1 RUN: 3d707a38-7a06-4a23-9585-2fb71ff54930